{"text_format":"1","workbook":"xlsx","n_sheets":13,"sheets":["I.Cel_II.Ident.","II.A Posiadacz","III.Opis oper. i IV. Info.gosp.","kody PKD","V.Finans.","Listy","VI.Inf.zał.","VII-X. Ośw.Wniosk.","zał.4 następca_prawny","Zał2_ośw_współ","Zał3_ośw_zaprzest","Zał4 ośw. następcy","Zał5_Info przetwarz. danych"],"not_rendered":{"charts":0,"images":0,"macros":1,"external_links":1,"defined_names":58,"comments":0,"pivot_tables":0},"unopened":[],"bounds":{"document_bytes":16777216,"sheet_cells":100000,"rows_first":2000,"rows_last":500,"rows_between":2000,"halvings":0,"cell_chars":16384,"cell_head_chars":4096},"cells_cut":0,"cells_raw":0,"read":"whole","date_system":"1900"}

{"sheet":"I.Cel_II.Ident.","index":0,"n_rows":62,"n_cols":31,"rows_kept":62,"cut":false,"hidden":false,"merged":[[42,1,42,11],[43,1,43,11],[42,12,42,24],[43,12,43,24],[42,25,42,34],[43,25,43,34],[61,1,61,35],[44,12,44,24],[45,12,45,24],[44,25,44,34],[54,5,54,8],[50,16,50,24],[59,19,59,34],[52,6,52,15],[52,26,52,34],[53,26,53,34],[52,16,52,25],[51,25,51,34],[54,9,54,17],[51,16,51,24],[46,12,46,24],[47,12,47,24],[53,6,53,15],[54,26,54,34],[51,8,51,15],[53,16,53,25],[52,1,52,5],[53,1,53,5],[60,1,60,18],[54,18,54,25],[54,1,54,4],[58,1,58,35],[59,1,59,18],[55,1,55,4],[60,19,60,34],[55,5,55,8],[55,9,55,17],[55,26,55,34],[55,18,55,25],[46,1,46,11],[47,1,47,11],[46,25,46,34],[47,25,47,34],[51,1,51,7],[50,25,50,34],[49,1,49,34],[50,8,50,15],[50,1,50,7],[45,25,45,34],[44,1,44,11],[45,1,45,11],[8,25,8,35],[2,25,2,29],[37,1,37,6],[41,16,41,24],[41,1,41,7],[36,1,36,6],[26,2,26,34],[41,25,41,34],[33,12,33,20],[33,22,33,34],[40,1,40,7],[40,8,40,15],[40,16,40,24],[0,0,0,9],[0,10,0,36],[13,7,13,34],[13,1,13,6],[2,30,2,34],[1,0,2,24],[36,8,36,20],[37,8,37,20],[24,1,25,1],[3,0,6,24],[8,0,8,24],[20,3,20,22],[30,19,30,34],[28,19,28,34],[29,19,29,34],[31,19,31,34],[18,3,18,22],[39,1,39,34],[41,8,41,15],[4,25,5,35],[24,2,25,11],[9,0,9,35],[17,1,17,33],[29,1,31,18],[33,1,33,10],[34,12,34,20],[34,22,34,34],[10,0,11,35],[16,1,16,27],[22,3,22,22],[28,1,28,18],[24,12,25,34],[40,25,40,34]]}
["Wnioskodawca:",null,null,null,null,null,null,null,null,null,{"$f":"IF(I.Cel_II.Ident.!T30=\"\",I.Cel_II.Ident.!B30,I.Cel_II.Ident.!T30&\" \"&I.Cel_II.Ident.!B30)","v":0}]
["Agencja Restrukturyzacji i Modernizacji Rolnictwa"]
[null,null,null,null,null,null,null,null,null,null,null,null,null,null,null,null,null,null,null,null,null,null,null,null,null,"Symbol formularza",null,null,null,null,"W-1/6.2"]
["WNIOSEK             \n o przyznanie pomocy finansowej na operacje typu \n„Premie na rozpoczęcie działalności pozarolniczej” w ramach poddziałania 6.2. „Pomoc na rozpoczęcie pozarolniczej działalności gospodarczej na obszarach wiejskich” objętego Programem Rozwoju Obszarów Wiejskich na lata 2014-2020"]
[null,null,null,null,null,null,null,null,null,null,null,null,null,null,null,null,null,null,null,null,null,null,null,null,null,"Potwierdzenie przyjęcia przez Oddział Regionalny ARiMR\n/pieczęć/"]
[]
[]
[]
["OPERACJA ZWIĄZANA Z PODEJMOWANIEM POZAROLNICZEJ DZIAŁALNOŚCI GOSPODARCZEJ ",null,null,null,null,null,null,null,null,null,null,null,null,null,null,null,null,null,null,null,null,null,null,null,null,"...............................................\nData przyjęcia i podpis"]
[".................................................................................................................................................................\nZnak sprawy"]
["W celu poprawnego wypełnienia wniosku podmiot ubiegający się o przyznanie pomocy \npowinien zapoznać się z instrukcją jego wypełniania"]
[]
[]
[null,"I. CEL ZŁOŻENIA:",null,null,null,null,null,"(wybierz z listy)"]
[]
[]
[null,"II. IDENTYFIKACJA PODMIOTU UBIEGAJĄCEGO SIĘ O PRZYZNANIE POMOCY"]
[null,"1. Numer identyfikacyjny "]
[null,"1.1.",null,"podmiotu ubiegającego się o przyznanie pomocy"]
[]
[null,"1.2.",null,"rolnika w gospodarstwie którego ubezpieczony jest domownik "]
[]
[null,"1.3.",null,"techniczny (wypełnia pracownik OR ARiMR)"]
[]
[null,"2.","Rodzaj podmiotu ubiegającego się o przyznanie pomocy",null,null,null,null,null,null,null,null,null,"(wybierz z listy)"]
[]
[null,"3.","Dane podmiotu ubiegającego się o przyznanie pomocy"]
[]
[null,"3.1. Nazwisko",null,null,null,null,null,null,null,null,null,null,null,null,null,null,null,null,null,"3.2. Pierwsze imię"]
[]
[null,null,null,null,null,null,null,null,null,null,null,null,null,null,null,null,null,null,null,"3.3. PESEL/data urodzenia"]
[]
[]
[null,"3.4. NIP",null,null,null,null,null,null,null,null,null,null,"3.5. Kod kraju ",null,null,null,null,null,null,null,null,null,"3.6. Seria i numer  paszportu lub innego dokumenu tożsamości"]
[null,null,null,null,null,null,null,null,null,null,null,null,"(wybierz z listy)"]
[]
[null,"3.7 Płeć*",null,null,null,null,null,null,"3.8. Stan cywilny"]
[null,"(wybierz z listy)",null,null,null,null,null,null,"(wybierz z listy)"]
[]
[null,"4. Adres podmiotu ubiegającego się o przyznanie pomocy (miejsce zamieszkania i adres)"]
[null,"4.1. Kraj",null,null,null,null,null,null,"4.2. Województwo",null,null,null,null,null,null,null,"4.3. Powiat",null,null,null,null,null,null,null,null,"4.4. Gmina"]
[null,"(wybierz z listy)",null,null,null,null,null,null,"(wybierz z listy)"]
[null,"4.5. Kod pocztowy",null,null,null,null,null,null,null,null,null,null,"4.6. Poczta",null,null,null,"4.7. Miejscowość",null,null,null,null,null,null,null,null,"4.7. Miejscowość","4.7. Miejscowość"]
[]
[null,"4.8 Ulica",null,null,null,null,null,null,null,null,null,null,"4.9. Nr domu",null,null,null,null,null,null,null,null,null,null,null,null,"4.10. Nr lokalu"]
[]
[null,"4.11. Telefon komórkowy*",null,null,null,null,null,null,null,null,null,null,"4.12. Telefon stacjonarny*",null,null,null,null,null,null,null,null,null,null,null,null,"4.13. E-mail*"]
[]
[]
[null,"5. Adres do korespondencji  (wypełnić, jeśli jest inny niż w pkt 4 lub ustanowiono pełnomocnika)"]
[null,"5.1. Kraj",null,null,null,null,null,null,"5.2. Województwo",null,null,null,null,null,null,null,"5.3. Powiat",null,null,null,null,null,null,null,null,"5.4. Gmina"]
[null,"(wybierz z listy)",null,null,null,null,null,null,"(wybierz z listy)"]
[null,"5.5. Kod pocztowy",null,null,null,null,"5.6. Poczta",null,null,null,null,null,null,null,null,null,"5.7. Miejscowość",null,null,null,null,null,null,null,null,null,"5.8 Ulica"]
[]
[null,"5.9. Nr domu",null,null,null,"5.10. Nr lokalu",null,null,null,"5.11.Telefon komórkowy*",null,null,null,null,null,null,null,null,"5.12. Telefon stacjonarny*",null,null,null,null,null,null,null,"5.13. E-mail*"]
[]
[]
[]
[null,"6. Dane pełnomocnika podmiotu ubiegającego się o przyznanie pomocy"]
[null,"6.1. Nazwisko",null,null,null,null,null,null,null,null,null,null,null,null,null,null,null,null,null,"6.2. Pierwsze imię"]
[]
[null,"* Dane nieobowiązkowe."]

{"sheet":"II.A Posiadacz","index":1,"n_rows":103,"n_cols":31,"rows_kept":103,"cut":false,"hidden":false,"merged":[[87,1,87,35],[57,26,57,35],[102,1,102,14],[89,2,89,35],[102,22,103,36],[103,1,103,15],[92,0,92,36],[90,1,90,14],[90,22,90,36],[64,16,64,28],[65,2,65,15],[65,16,65,28],[70,1,70,36],[72,30,72,35],[75,0,75,35],[65,29,65,35],[64,2,64,15],[82,1,82,35],[94,0,94,3],[100,1,100,14],[100,22,100,36],[83,1,83,35],[84,1,84,35],[85,1,85,35],[86,1,86,35],[62,2,62,15],[66,1,66,36],[81,1,81,35],[77,1,77,35],[78,1,78,35],[79,1,79,35],[80,1,80,35],[60,1,60,4],[72,1,72,29],[76,0,76,35],[63,16,63,28],[64,29,64,35],[67,19,67,35],[68,19,68,35],[67,1,67,18],[68,1,68,18],[61,2,61,34],[63,2,63,15],[62,16,62,28],[62,29,62,35],[63,29,63,35],[60,9,60,17],[54,1,54,35],[60,18,60,25],[58,1,58,5],[58,26,58,35],[58,6,58,15],[59,26,59,35],[57,1,57,5],[57,6,57,15],[56,25,56,35],[58,16,58,25],[59,18,59,25],[55,1,55,7],[59,9,59,17],[55,25,55,35],[55,8,55,15],[56,8,56,15],[56,16,56,24],[55,16,55,24],[60,26,60,35],[60,5,60,8],[59,1,59,4],[59,5,59,8],[56,1,56,7],[57,16,57,25],[51,7,51,11],[53,1,53,17],[52,1,52,17],[50,7,50,11],[48,16,48,25],[50,1,50,6],[48,26,48,35],[47,16,47,24],[49,26,49,35],[50,12,50,35],[51,12,51,35],[49,1,49,5],[48,1,48,5],[49,16,49,25],[47,25,47,35],[47,1,47,7],[47,8,47,15],[49,6,49,15],[48,6,48,15],[52,18,52,35],[53,18,53,35],[51,1,51,6],[39,22,39,32],[46,1,46,7],[46,16,46,24],[38,22,38,32],[41,11,41,22],[42,1,42,9],[42,11,42,22],[41,1,41,9],[45,1,45,35],[46,25,46,35],[46,8,46,15],[32,2,32,35],[13,1,13,2],[24,5,24,34],[33,19,33,35],[36,19,36,35],[26,5,26,34],[30,11,30,35],[30,2,30,9],[38,1,38,10],[33,1,33,18],[34,1,36,18],[38,12,38,20],[35,19,35,35],[34,19,34,35],[22,5,22,34],[0,0,0,12],[0,13,0,36],[1,1,2,35],[12,4,12,28],[12,29,12,35],[20,5,20,34],[4,2,5,10],[4,12,5,23],[4,25,5,36],[7,11,7,32],[9,1,9,9],[12,2,12,3],[14,5,14,34],[13,3,13,35],[18,5,18,34],[16,5,16,34],[98,1,99,14],[98,15,99,36],[101,1,101,14],[101,22,101,36],[88,1,88,35],[97,1,97,2],[96,0,96,3],[93,5,95,35],[96,5,97,35]]}
["Podmiot ubiegający się o przyznanie pomocy:",null,null,null,null,null,null,null,null,null,null,null,null,{"$f":"IF(I.Cel_II.Ident.!T30=\"\",I.Cel_II.Ident.!B30,I.Cel_II.Ident.!T30&\" \"&I.Cel_II.Ident.!B30)","v":0}]
[null," II.A. DANE IDENTYFIKACYJNE: "]
[]
[]
[null,null,"WSPÓŁPOSIADACZA GOSPODARSTWA ROLNEGO ",null,null,null,null,null,null,null,null,null,"MAŁŻONKA PODMIOTU UBIEGAJĄCEGO\n SIĘ O PRZYZNANIE POMOCY",null,null,null,null,null,null,null,null,null,null,null,null,"ROLNIKA W GOSPODARSTWIE KTÓREGO UBEZPIECZONY JEST DOMOWNIK"]
[]
[]
[null,null,null,null,null,null,null,null,null,null,null,"INNE: (wymienić jakie)"]
[]
[null,"1. NUMER IDENTYFIKACYJNY:",null,null,null,null,null,null,null,null,"1.1."]
[]
[]
[null,null,"1.2. ",null,"Wpisany numer jest numerem nadanym osobie, której dane zawarto poniżej",null,null,null,null,null,null,null,null,null,null,null,null,null,null,null,null,null,null,null,null,null,null,null,null,"(wybierz z listy)"]
[]
[]
[]
[]
[]
[]
[]
[]
[]
[]
[]
[]
[]
[]
[]
[]
[]
[null,"2.","Rodzaj podmiotu:",null,null,null,null,null,null,null,null,"(wybierz z listy)"]
[]
[null,"3.","Dane identyfikacyjne:"]
[null,"3.1. Nazwisko / Nazwa ",null,null,null,null,null,null,null,null,null,null,null,null,null,null,null,null,null,"3.2. Pierwsze imię"]
[]
[null,null,null,null,null,null,null,null,null,null,null,null,null,null,null,null,null,null,null,"3.3. PESEL/data urodzenia"]
[]
[]
[null,"3.4. NIP",null,null,null,null,null,null,null,null,null,null,"3.5. KRS",null,null,null,null,null,null,null,null,null,"3.6. Płeć*"]
[null,null,null,null,null,null,null,null,null,null,null,null,null,null,null,null,null,null,null,null,null,null,"(wybierz z listy)"]
[]
[null,"3.7. Kod kraju",null,null,null,null,null,null,null,null,null,"3.8. Seria i numer  paszportu lub innego dokumenu tożsamości"]
[null,"(wybierz z listy)"]
[]
[]
[null,"4. Adres (miejsce zamieszkania i adres osoby fizycznej albo siedziba i adres w przypadku pozostałych form prawnych)"]
[null,"4.1. Kraj",null,null,null,null,null,null,"4.2. Województwo",null,null,null,null,null,null,null,"4.3. Powiat",null,null,null,null,null,null,null,null,"4.4. Gmina"]
[null,"(wybierz z listy)",null,null,null,null,null,null,"(wybierz z listy)"]
[null,"4.5. Kod pocztowy",null,null,null,null,"4.6. Poczta",null,null,null,null,null,null,null,null,null,"4.7. Miejscowość ",null,null,null,null,null,null,null,null,null,"4.8. Ulica"]
[]
[null,"4.9. Nr domu",null,null,null,null,null,"4.10. Nr lokalu",null,null,null,null,"4.11. Telefon komórkowy*"]
[]
[null,"4.12. Telefon stacjonarny*",null,null,null,null,null,null,null,null,null,null,null,null,null,null,null,null,"4.13. E-mail*"]
[]
[null,"5. Adres do korespondencji (wypełnić, jeśli jest inny niż w pkt 4 lub ustanowiono pełnomocnika)"]
[null,"5.1. Kraj",null,null,null,null,null,null,"5.2. Województwo",null,null,null,null,null,null,null,"5.3. Powiat",null,null,null,null,null,null,null,null,"5.4. Gmina"]
[null,"(wybierz z listy)",null,null,null,null,null,null,"(wybierz z listy)"]
[null,"5.5. Kod pocztowy",null,null,null,null,"5.6. Poczta",null,null,null,null,null,null,null,null,null,"5.7. Miejscowość",null,null,null,null,null,null,null,null,null,"5.8 Ulica"]
[]
[null,"5.9. Nr domu",null,null,null,"5.10. Nr lokalu",null,null,null,"5.11.Telefon komórkowy*",null,null,null,null,null,null,null,null,"5.12. Telefon stacjonarny*",null,null,null,null,null,null,null,"5.13. E-mail*"]
[]
[null,"6.","Dane osób upoważnionych do reprezentowania podmiotu  (dotyczy podmiotów niebędących osobą fizyczną)"]
[null,"Lp.","Nazwisko",null,null,null,null,null,null,null,null,null,null,null,null,null,"Imię",null,null,null,null,null,null,null,null,null,null,null,null,"PESEL"]
[null,"6.1."]
[null,"6.2."]
[null,"6.3."]
[null,"7. Dane pełnomocnika* "]
[null,"7.1. Nazwisko ",null,null,null,null,null,null,null,null,null,null,null,null,null,null,null,null,null,"7.2. Pierwsze imię"]
[]
[]
[null,"8. Rozdzielność majątkowa małżonków"]
[]
[null,"8.1. Posiadam rozdzielność majątkową z podmiotem wskazanym w sekcji II pkt. 3",null,null,null,null,null,null,null,null,null,null,null,null,null,null,null,null,null,null,null,null,null,null,null,null,null,null,null,null,"(wybierz z listy)"]
[null,"* Dane nieobowiązkowe."]
[]
["II. B. Klauzula informacyjna w zakresie przetwarzania danych osobowych (dotyczy osób fizycznych) "]
["Zgodnie z art. 13 rozporządzenia Parlamentu Europejskiego i Rady (UE) 2016/679 z dnia 27 kwietnia 2016 r. w sprawie ochrony osób fizycznych w związku z przetwarzaniem danych osobowych i w sprawie swobodnego przepływu takich danych oraz uchylenia dyrektywy 95/46/WE ogólne rozporządzenie o ochronie danych (Dz. Urz. UE L 119 z 04.05.2016, str. 1 oraz Dz. Urz. UE L 127 z 23.05.2018, str. 2), zwanego dalej: „Rozporządzeniem RODO” Agencja Restrukturyzacji i Modernizacji Rolnictwa informuje, że: "]
["1)","administratorem Pani/Pana danych osobowych jest Agencja Restrukturyzacji i Modernizacji Rolnictwa z siedzibą w Warszawie, Al. Jana Pawła II 70, 00-175 Warszawa;"]
["2)","z administratorem  Pani/Pana danych osobowych może się Pani/Pan kontaktować poprzez adres e-mail: info@arimr.gov.pl lub pisemnie na adres korespondencyjny Centrali Agencji Restrukturyzacji i Modernizacji Rolnictwa, ul. Poleczki 33, 02-822 Warszawa;"]
["3)","administrator danych wyznaczył inspektora ochrony danych, z którym może się Pani/Pan kontaktować w sprawach dotyczących przetwarzania danych osobowych oraz korzystania z praw związanych z przetwarzaniem danych, poprzez adres e-mail: iod@arimr.gov.pl lub pisemnie na adres korespondencyjny administratora danych, wskazany w pkt 2; "]
["4)","zebrane Pani/Pana dane osobowe będą przetwarzane przez administratora danych na podstawie art. 6 ust. 1 lit. c Rozporządzenia RODO, gdy jest to niezbędne do wypełnienia obowiązku prawnego ciążącego na administratorze danych (dane obowiązkowe) lub art. 6 ust. 1 lit. a Rozporządzenia RODO, tj. na podstawie odrębnej zgody na przetwarzanie danych osobowych, która obejmuje zakres danych szerszy, niż to wynika z powszechnie obowiązującego prawa (dane nieobowiązkowe);\n"]
["5)","zebrane Pani/Pana dane osobowe na podstawie art. 6  ust. 1 lit. c Rozporządzenia RODO będą przetwarzane przez administratora danych w celu realizacji zadań wynikających z art. 6 ust. 2 w zw. z art. 3 ust. 1 pkt 6 lit. b ustawy z dnia 20 lutego 2015 r. o wspieraniu rozwoju obszarów wiejskich z udziałem środków Europejskiego Funduszu Rolnego na rzecz Rozwoju Obszarów Wiejskich w ramach Programu Rozwoju Obszarów Wiejskich na lata 2014-2020 (Dz. U. z 2018 r. poz. 627 oraz z 2019 r. poz. 83 i 504), w związku z rozporządzeniem Ministra Rolnictwa i Rozwoju Wsi z dnia 25 lipca 2016 r. w sprawie szczegółowych warunków i trybu przyznawania, wypłaty oraz zwrotu pomocy finansowej na operacje typu „Premie na rozpoczęcie działalności pozarolniczej” w ramach poddziałania „Pomoc na rozpoczęcie pozarolniczej działalności gospodarczej na obszarach wiejskich” objętego Programem Rozwoju Obszarów Wiejskich na lata 2014-2020 (Dz. U. z 2016 r. poz. 1196, z 2017 r. poz. 1013, z 2018 r. poz. 1071 oraz z 2019 r. poz. 922), tj. w celu przyznania pomocy finansowej; "]
["6)","zebrane Pani/Pana dane osobowe mogą być udostępniane podmiotom publicznym uprawnionym do przetwarzania danych osobowych na podstawie przepisów powszechnie obowiązującego prawa oraz podmiotom przetwarzającym dane osobowe na zlecenie administratora w związku z wykonywaniem powierzonego im zadania w drodze zawartej umowy, m.in. dostawcom IT;\n"]
["7)","zebrane Pani/Pana dane osobowe na podstawie art. 6 ust. 1 lit. c Rozporządzenie RODO, będą przetwarzane:\n- od dnia ich pozyskania do dnia, w którym upłynął okres zobowiązań w związku z przyznaniem pomocy na operację, której dotyczy ten wniosek oraz \n- od dnia upływu okresu zobowiązań w związku  z przyznaną pomocą do dnia 1 stycznia roku następującego po roku, w którym upłynął okres zobowiązań w związku z przyznaniem pomocy  na operację, której dotyczy ten wniosek, oraz\n- od dnia 1 stycznia roku następującego po roku, w którym upłynął okres zobowiązań w związku z przyznaniem pomocy  na operację, której dotyczy ten wniosek do dnia upływu 5 lat od tej daty.  Okres przechowywania danych może zostać każdorazowo przedłużony o okres przedawnienia roszczeń, jeżeli przetwarzanie danych będzie niezbędne do dochodzenia roszczeń lub do obrony przed takimi roszczeniami przez administratora danych.\nPonadto, okres przechowywania danych może zostać przedłużony na okres potrzebny do przeprowadzenia archiwizacji; "]
["8)","Pani/Pana dane osobowe zebrane na podstawie art. 6 ust. 1 lit. a Rozporządzenia RODO, tj. na podstawie odrębnej zgody na przetwarzanie danych osobowych, będą przetwarzane:                                   \n- od dnia ich pozyskania do dnia, w którym upłynął okres zobowiązań w związku z przyznaniem pomocy  na operację, której dotyczy ten wniosek oraz \n- od dnia upływu okresu zobowiązań w związku  z przyznaną pomocą do dnia  1 stycznia roku następującego po roku, w którym upłynął okres zobowiązań w związku z przyznaniem pomocy  na operację, której dotyczy ten wniosek, oraz\n- od dnia 1 stycznia roku następującego po roku, w którym upłynął okres zobowiązań w związku z przyznaniem pomocy  na operację, której dotyczy ten wniosek do dnia upływu 5 lat od tej daty, lub do czasu jej odwołania; "]
["9)","przysługuje Pani/Panu prawo dostępu do Pani/Pana danych, prawo żądania ich sprostowania, usunięcia lub ograniczenia ich przetwarzania, w przypadkach określonych w Rozporządzeniu RODO;"]
["10)","w przypadkach, w których przetwarzanie Pani/Pana danych osobowych odbywa się na podstawie art. 6 ust. 1 lit. a Rozporządzenia RODO, tj. na podstawie odrębnej zgody na przetwarzanie danych osobowych, przysługuje Pani/Panu prawo do odwołania tej zgody lub zmiany w dowolnym momencie, bez wpływu na zgodność z prawem przetwarzania, którego dokonano na podstawie zgody przed jej odwołaniem;"]
["11)","w przypadku uznania, że przetwarzanie Pani/Pana danych osobowych narusza przepisy Rozporządzenia RODO, przysługuje Pani/Panu prawo wniesienia skargi do Prezesa Urzędu Ochrony Danych Osobowych;"]
["12)","podanie Pani/Pana danych osobowych na podstawie art. 6 ust. 1 lit. c Rozporządzenia RODO we wniosku o przyznanie pomocy na operacje typu „Premie na rozpoczęcie działalności pozarolniczej” w ramach poddziałania „Pomoc na rozpoczęcie pozarolniczej działalności gospodarczej na obszarach wiejskich” objętego Programem Rozwoju Obszarów Wiejskich na lata 2014-2020 wynika z obowiązku zawartego w przepisach powszechnie obowiązujących, a konsekwencją niepodania tych danych osobowych będzie pozostawienie wniosku bez rozpoznania/ pozostawienie wniosku bez rozpoznania po uprzednim jednokrotnym wezwaniu do uzupełnienia braków we wniosku. \n"]
[]
[]
[]
["Zgoda współposiadacza/małżonka/rolnika/pełnomocnika\n(aby wyrazić zgodę należy wybrać z listy rozwijanej X)"]
[null,null,null,null,null,"Wyrażam zgodę na przetwarzanie przez Agencję Restrukturyzacji i Modernizacji Rolnictwa z siedzibą w Warszawie, Al. Jana Pawła II nr 70, 00-175 Warszawa (adres do korespondencji: ul. Poleczki 33, 02-822 Warszawa), jako administratora danych osobowych, danych podanych w zakresie szerszym, niż jest to wymagane na podstawie przepisów powszechnie obowiązującego prawa, oznaczonych w formularzu „Wniosku o przyznanie pomocy na operacje typu „Premie na rozpoczęcie działalności pozarolniczej” w ramach poddziałania 6.2 „Pomoc na rozpoczęcie pozarolniczej działalności gospodarczej na obszarach wiejskich” objętego Programem Rozwoju Obszarów Wiejskich na lata 2014-2020” jako „dane nieobowiązkowe”, w celu ułatwienia kontaktu ze mną w sprawach dotyczących przyznania pomocy finansowej."]
["Współposiadacz/  małżonek/      rolnik"]
[]
["Pełnomocnik",null,null,null,null,"Podanie ww. danych jest dobrowolne, a ich niepodanie nie wpływa na proces przyjęcia i rozpatrzenia wniosku o pomoc na operacje realizowane w ramach poddziałania „Pomoc na rozpoczęcie pozarolniczej działalności gospodarczej na obszarach wiejskich”  objętego Programem Rozwoju Obszarów Wiejskich na lata 2014-2020. Niepodanie tych danych uniemożliwi jedynie realizację celu wskazanego w treści powyższej zgody. Powyższą zgodę można wycofać w dowolnym momencie, poprzez przesłanie \"oświadczenia o wycofaniu zgody\" na adresy korespondencyjne administratora danych z dopiskiem \"Ochrona danych osobowych\" lub na adresy e-mail: info@arimr.gov.pl, iod@arimr.gov.pl.\nWycofanie zgody nie wpływa na zgodność z prawem przetwarzania, którego dokonano na podstawie zgody przed jej wycofaniem."]
[]
[]
[]
[null,"miejscowość i data",null,null,null,null,null,null,null,null,null,null,null,null,null,null,null,null,null,null,null,null,"(czytelny podpis współposiadacza/małżonka/rolnika albo pełnomocnika współposiadacza/małżonka/rolnika)"]
[]
[null,"miejscowość i data",null,null,null,null,null,null,null,null,null,null,null,null,null,null,null,null,null,null,null,null,"(czytelny podpis pełnomocnika)"]

{"sheet":"III.Opis oper. i IV. Info.gosp.","index":2,"n_rows":111,"n_cols":31,"rows_kept":111,"cut":false,"hidden":false,"merged":[[53,20,53,22],[67,2,67,36],[53,29,53,36],[64,2,64,36],[62,0,62,37],[53,1,53,4],[58,0,59,0],[58,1,58,4],[58,5,58,8],[58,9,58,12],[58,13,58,16],[56,0,57,0],[54,0,55,0],[54,1,54,4],[56,1,56,4],[58,29,58,36],[57,1,57,22],[57,23,57,36],[59,1,59,22],[96,19,96,20],[69,2,69,36],[83,2,83,36],[81,1,81,36],[75,2,75,25],[59,23,59,36],[77,2,77,25],[72,2,72,36],[73,2,73,35],[75,27,75,35],[77,27,77,35],[68,2,68,36],[65,1,65,36],[49,2,50,36],[60,23,60,25],[60,26,60,28],[66,2,66,36],[38,1,38,5],[38,6,38,19],[38,20,38,36],[45,14,45,19],[45,20,45,24],[43,25,43,36],[44,1,44,13],[53,23,53,25],[53,26,53,28],[51,1,51,12],[53,9,53,12],[53,5,53,8],[54,5,54,8],[54,9,54,12],[54,13,54,16],[56,26,56,28],[58,23,58,25],[54,17,54,19],[55,1,55,22],[55,23,55,36],[3,1,3,36],[14,0,14,37],[4,1,5,36],[6,1,6,36],[26,1,26,13],[26,14,26,19],[9,29,9,36],[8,1,8,2],[8,3,8,36],[26,25,26,36],[10,4,10,27],[11,4,11,27],[12,3,13,27],[16,0,23,0],[24,1,24,13],[24,14,24,24],[24,25,24,36],[25,1,25,13],[25,14,25,24],[25,25,25,36],[19,2,20,29],[19,30,19,36],[21,1,21,36],[22,2,22,36],[116,2,117,27],[108,29,108,35],[85,2,85,12],[106,29,106,35],[108,2,109,27],[102,29,102,35],[104,29,104,35],[110,29,110,35],[89,1,89,12],[88,26,88,36],[104,2,105,27],[110,2,111,27],[106,2,107,27],[102,2,103,27],[87,2,87,36],[89,26,89,36],[88,13,88,25],[85,22,85,36],[89,13,89,25],[88,1,88,12],[100,2,101,35],[90,2,90,36],[92,19,92,20],[94,19,94,20],[51,0,52,0],[58,17,58,19],[58,20,58,22],[56,29,56,36],[43,1,43,13],[43,14,43,24],[58,26,58,28],[56,23,56,25],[51,13,51,28],[51,29,52,36],[52,1,52,4],[47,20,47,36],[44,14,44,19],[44,20,44,24],[44,25,44,36],[45,1,45,13],[56,5,56,8],[56,9,56,12],[56,13,56,16],[56,20,56,22],[53,13,53,16],[53,17,53,19],[54,29,54,36],[56,17,56,19],[0,0,0,12],[0,13,0,36],[52,13,52,16],[52,17,52,19],[52,20,52,22],[37,1,37,5],[37,6,37,19],[37,20,37,36],[34,14,34,24],[34,25,34,36],[47,1,47,5],[47,6,47,19],[40,2,40,29],[40,30,40,36],[42,1,42,13],[42,14,42,24],[42,25,42,36],[27,1,27,13],[35,1,35,13],[35,14,35,19],[26,20,26,24],[35,20,35,24],[35,25,35,36],[36,1,36,13],[100,1,101,1],[1,1,1,12],[12,29,12,36],[9,1,9,2],[12,1,12,2],[9,3,9,28],[27,14,27,19],[27,20,27,24],[27,25,27,36],[28,1,28,5],[28,6,28,19],[28,20,28,36],[17,1,17,36],[45,25,45,36],[46,1,46,5],[46,6,46,19],[54,20,54,22],[54,23,54,25],[54,26,54,28],[52,23,52,25],[52,26,52,28],[46,20,46,36],[52,5,52,8],[52,9,52,12],[36,14,36,19],[36,20,36,24],[29,6,29,19],[29,20,29,36],[33,25,33,36],[34,1,34,13],[36,25,36,36],[31,2,31,36],[33,1,33,13],[33,14,33,24],[29,1,29,5]]}
["Podmiot ubiegający się o przyznanie pomocy:",null,null,null,null,null,null,null,null,null,null,null,null,{"$f":"IF(I.Cel_II.Ident.!T30=\"\",I.Cel_II.Ident.!B30,I.Cel_II.Ident.!T30&\" \"&I.Cel_II.Ident.!B30)","v":0}]
[null,"III. OPIS PLANOWANEJ OPERACJI"]
[]
[null,"1. Zgodność operacji z celami Programu"]
[null,"1.1. Cel szczegółowy"]
[]
[null,"Ułatwianie różnicowania działalności, zakładania i rozwoju małych przedsiębiorstw, \na także tworzenia miejsc pracy"]
[]
[null,"1.1.1. ",null,"Planowane do realizacji i utrzymania wskaźniki osiągnięcia celu operacji "]
[null,"1.1.1.1.",null,"Wykonywanie działalności gospodarczej określonej w biznesplanie co najmniej do dnia upływu: ",null,null,null,null,null,null,null,null,null,null,null,null,null,null,null,null,null,null,null,null,null,null,null,null,null,"TAK"]
[null,null,null,"-","3 lat od dnia wypłaty drugiej raty pomocy w odniesieniu do działalności, która wymaga wpisu do ewidencji prowadzonej przez jednostkę samorządu terytorialnego obowiązaną do prowadzenia odpowiedniego typu szkół i placówek publicznych \n"]
[null,null,null,"-","5 lat od dnia wypłaty pierwszej raty pomocy, w odniesieniu do pozostałych rodzajów działalności objętych wsparciem "]
[null,"1.1.1.2.",null,"Utworzenie i utrzymanie liczby miejsc pracy (wliczając samozatrudnienie) w przeliczeniu na pełne etaty średnioroczne w okresie co najmniej 2 lat od dnia wypłaty drugiej raty pomocy",null,null,null,null,null,null,null,null,null,null,null,null,null,null,null,null,null,null,null,null,null,null,null,null,null,"(wybierz z listy)"]
[]
[]
[]
[]
[null,"2. Lokalizacja operacji "]
[]
[null,"2.1","Operacja jest związana z budową, przebudową, remontem połączonym z modernizacją, wyposażeniem lub zagospodarowaniem nieruchomości objętej operacją",null,null,null,null,null,null,null,null,null,null,null,null,null,null,null,null,null,null,null,null,null,null,null,null,null,null,null,"(wybierz z listy)"]
[]
[null,"Uwaga: Szczegółowe dane dotyczące działek ewidencyjnych wchodzących w skład nieruchomości na której będzie realizowana operacja związana z budową, przebudową, remontem połączonym z modernizacją, wyposażeniem lub zagospodarowaniem nieruchomości objętej operacją, należy umieścić w pkt. 2.5."]
[null,"2.2. ","Główne miejsce wykonywania działalności pozarolniczej"]
[]
[null,"2.2.1. Województwo",null,null,null,null,null,null,null,null,null,null,null,null,"2.2.2. Powiat",null,null,null,null,null,null,null,null,null,null,"2.2.3. Gmina"]
[null,"(wybierz z listy)"]
[null,"2.2.4. Ulica/Nazwa, nr obrębu i nr działki",null,null,null,null,null,null,null,null,null,null,null,null,"2.2.5. Nr domu",null,null,null,null,null,"2.2.6. Nr lokalu",null,null,null,null,"2.2.7. Miejscowość"]
[]
[null,"2.2.8. Kod pocztowy",null,null,null,null,"2.2.9. Poczta"]
[]
[]
[null,"2.3. ","Miejsce realizacji operacji (związanej z budową, przebudową, remontem połączonym z modernizacją, wyposażeniem lub zagospodarowaniem nieruchomości)"]
[]
[null,"2.3.1. Województwo",null,null,null,null,null,null,null,null,null,null,null,null,"2.3.2. Powiat",null,null,null,null,null,null,null,null,null,null,"2.3.3. Gmina"]
[null,"(wybierz z listy)"]
[null,"2.3.4. Ulica/Nazwa, nr obrębu i nr działki",null,null,null,null,null,null,null,null,null,null,null,null,"2.3.5. Nr domu",null,null,null,null,null,"2.3.6. Nr lokalu",null,null,null,null,"2.3.7. Miejscowość"]
[]
[null,"2.3.8. Kod pocztowy",null,null,null,null,"2.3.9. Poczta"]
[]
[]
[null,"2.4.","Miejsce przechowywania/garażowania (inne niż wskazane w pkt  2.2 lub 2.3)",null,null,null,null,null,null,null,null,null,null,null,null,null,null,null,null,null,null,null,null,null,null,null,null,null,null,null,"(wybierz z listy)"]
[]
[null,"2.4.1. Województwo",null,null,null,null,null,null,null,null,null,null,null,null,"2.4.2. Powiat",null,null,null,null,null,null,null,null,null,null,"2.4.3. Gmina"]
[null,"(wybierz z listy)"]
[null,"2.4.4. Ulica/Nazwa, nr obrębu i nr działki",null,null,null,null,null,null,null,null,null,null,null,null,"2.4.5. Nr domu",null,null,null,null,null,"2.4.6. Nr lokalu",null,null,null,null,"2.4.7. Miejscowość"]
[]
[null,"2.4.8. Kod pocztowy",null,null,null,null,"2.4.9. Poczta"]
[]
[]
[null,"2.5.","Informacja o działkach ewidencyjnych wchodzących w skład nieruchomości, na których realizowana będzie operacja związana z budową, przebudową, remontem połączonym z modernizacją, wyposażeniem lub zagospodarowaniem nieruchomości objętej operacją"]
[]
["Lp.","Położenie działki ewidencyjnej",null,null,null,null,null,null,null,null,null,null,null,"Dane wg ewidencji gruntów i budynków",null,null,null,null,null,null,null,null,null,null,null,null,null,null,null,"Informacje szczegółowe\n(w tym elektroniczny numer księgi wieczystej)\n"]
[null,"Województwo",null,null,null,"Powiat",null,null,null,"Gmina",null,null,null,"Nazwa obrębu ewidencyjnego",null,null,null,"Nr obrębu ewidencyj-nego",null,null,"Nr arkusza mapy",null,null,"Nr działki ewidencyj-nej",null,null,"Powierzchnia całkowita działki ewidencyjnej (w ha)"]
[1,2,null,null,null,3,null,null,null,4,null,null,null,5,null,null,null,6,null,null,7,null,null,8,null,null,9,null,null,10]
["2.5.1","(wybierz z listy)"]
[null,"Czy dana działka położona jest na obszarze o niekorzystnych warunkach gospodarowania (ONW)?",null,null,null,null,null,null,null,null,null,null,null,null,null,null,null,null,null,null,null,null,null,"(wybierz z listy)"]
["2.5.2","(wybierz z listy)"]
[null,"Czy dana działka położona jest na obszarze o niekorzystnych warunkach gospodarowania (ONW)?",null,null,null,null,null,null,null,null,null,null,null,null,null,null,null,null,null,null,null,null,null,"(wybierz z listy)"]
["2.5.3","(wybierz z listy)"]
[null,"Czy dana działka położona jest na obszarze o niekorzystnych warunkach gospodarowania (ONW)?",null,null,null,null,null,null,null,null,null,null,null,null,null,null,null,null,null,null,null,null,null,"(wybierz z listy)"]
[null,null,null,null,null,null,null,null,null,null,null,null,null,null,null,null,null,null,null,null,null,null,null,"Razem:",null,null,{"$f":"SUM(AA55,AA57,AA59)","v":0}]
[]
[]
[]
[null,"3.","Zakres i charakterystyka podejmowanej działalności pozarolniczej"]
[null,"3.1. Kod i nazwa podejmowanej działalności pozarolniczej (podklasy wg \"SZCZEGÓŁOWEGO WYKAZU DZIAŁALNOŚCI POZAROLNICZYCH, W ZAKRESIE KTÓRYCH MOŻE BYĆ PRZYZNANA POMOC\")"]
[null,"L.p.","Kod PKD i nazwa działalności"]
[null,"3.1.1.","(wybierz z listy)"]
[null,"3.1.2.","(wybierz z listy)"]
[null,"3.1.3.","(wybierz z listy)"]
[]
[]
[null,"3.2. ","Charakterystyka podmiotu ubiegającego się o przyznanie pomocy "]
[null,"3.2.1.","Określenie wielkości przedsiębiorstwa zgodnie z definicją zawartą w Załączniku I do Rozporządzenia Komisji (UE) nr 651/2014 z dnia 17 czerwca 2014 r. uznającego niektóre rodzaje pomocy za zgodne z rynkiem wewnętrznym w zastosowaniu art. 107 i 108 Traktatu "]
[]
[null,"3.2.1.1.","Podmiot ubiegający się o przyznanie pomocy jest przedsiębiorstwem:",null,null,null,null,null,null,null,null,null,null,null,null,null,null,null,null,null,null,null,null,null,null,null,null,"(wybierz z listy)"]
[]
[null,"3.2.2.","Data zarejestrowania działalności gospodarczej w CEIDG  (w formacie rok-miesiąc-dzień) "]
[]
[]
[]
[null,"IV. INFORMACJE DOTYCZĄCE GOSPODARSTWA"]
[]
[null,"1. ","Charakterystyka gospodarstwa rolnego, w którym pracuje podmiot ubiegający się o przyznanie pomocy"]
[]
[null,"1.1.","Typ rolniczy",null,null,null,null,null,null,null,null,null,null,null,null,null,null,null,null,null,null,null,"(wybierz z listy)"]
[]
[null,"1.2.","Miejsce położenia gospodarstwa rolnego "]
[null,"1.2.1. Województwo",null,null,null,null,null,null,null,null,null,null,null,"1.2.2. Powiat",null,null,null,null,null,null,null,null,null,null,null,null,"1.2.3. Gmina"]
[null,"(wybierz z listy)"]
[null,"1.3.","Informacje dotyczące siedziby stada świń - numer siedziby stada"]
[]
[null,"1.3.1.",null,"P","L",null,null,null,null,null,null,null,null,null,null,null,null,null,null,"1.3.4.",null,null,"P","L"]
[]
[null,"1.3.2.",null,"P","L",null,null,null,null,null,null,null,null,null,null,null,null,null,null,"1.3.5.",null,null,"P","L"]
[]
[null,"1.3.3.",null,"P","L",null,null,null,null,null,null,null,null,null,null,null,null,null,null,"1.3.6.",null,null,"P","L"]
[]
[]
[]
[null,"2.","Podmiot ubiegający się o przyznanie pomocy uzyskał pomoc finansową: "]
[]
[null,"2.1.","w ramach działania Różnicowanie w kierunku działalności nierolniczej objętego Programem Rozwoju Obszarów Wiejskich na lata 2007–2013 \n",null,null,null,null,null,null,null,null,null,null,null,null,null,null,null,null,null,null,null,null,null,null,null,null,null,null,"(wybierz z listy)"]
[]
[null,"2.2.","w ramach działania Wdrażanie lokalnych strategii rozwoju dla operacji, kóre odpowiadają warunkom przyznania pomocy w ramach działania Różnicowanie w kierunku działalności nierolniczej objętego Programem Rozwoju Obszarów Wiejskich na lata 2007–2013 \n",null,null,null,null,null,null,null,null,null,null,null,null,null,null,null,null,null,null,null,null,null,null,null,null,null,null,"(wybierz z listy)"]
[]
[null,"2.3.","na operacje typu Premie dla młodych rolników w ramach poddziałania Pomoc w rozpoczęciu działalności gospodarczej na rzecz młodych rolników objętego Programem Rozwoju Obszarów Wiejskich na lata 2014-2020",null,null,null,null,null,null,null,null,null,null,null,null,null,null,null,null,null,null,null,null,null,null,null,null,null,null,"(wybierz z listy)"]
[]
[null,"2.4.","na operacje typu Restrukturyzacja małych gospodarstw w ramach poddziałania Pomoc na rozpoczęcie działalności gospodarczej na rzecz rozwoju małych gospodarstw  objętego Programem Rozwoju Obszarów Wiejskich na lata 2014-2020",null,null,null,null,null,null,null,null,null,null,null,null,null,null,null,null,null,null,null,null,null,null,null,null,null,null,"(wybierz z listy)"]
[]
[null,"2.5.","w ramach poddziałania Płatności na rzecz rolników kwalifikujących się do systemu dla małych gospodarstw, którzy trwale przekazali swoje gospodarstwo innemu rolnikowi objętego Programem Rozwoju Obszarów Wiejskich na lata 2014-2020 lub taką pomoc uzyskał małżonek podmiotu ubiegającego się o przyznanie pomocy, o ile nie została ustanowiona rozdzielność majątkowa. ",null,null,null,null,null,null,null,null,null,null,null,null,null,null,null,null,null,null,null,null,null,null,null,null,null,null,"(wybierz z listy)"]

{"sheet":"kody PKD","index":3,"n_rows":406,"n_cols":3,"rows_kept":406,"cut":false,"hidden":true,"merged":[]}
["Numer Polskiej Klasyfikacji Działalności (PKD)"," Rodzaj działalności","(wybierz z listy)"]
["01.70.Z"," Łowiectwo i pozyskiwanie zwierząt łownych, włączając działalność usługową",{"$f":"CONCATENATE(A2,B2)","v":"01.70.Z Łowiectwo i pozyskiwanie zwierząt łownych, włączając działalność usługową"}]
["02.20.Z"," Pozyskiwanie drewna","02.20.Z Pozyskiwanie drewna"]
["02.40.Z"," Działalność usługowa związana z leśnictwem","02.40.Z Działalność usługowa związana z leśnictwem"]
["08.11.Z"," Wydobywanie kamieni ozdobnych oraz kamienia dla potrzeb budownictwa, skał wapiennych, gipsu, kredy i łupków","08.11.Z Wydobywanie kamieni ozdobnych oraz kamienia dla potrzeb budownictwa, skał wapiennych, gipsu, kredy i łupków"]
["08.12.Z"," Wydobywanie żwiru i piasku; wydobywanie gliny i kaolinu","08.12.Z Wydobywanie żwiru i piasku; wydobywanie gliny i kaolinu"]
["08.92.Z"," Wydobywanie torfu","08.92.Z Wydobywanie torfu"]
["08.99.Z"," Pozostałe górnictwo i wydobywanie, gdzie indziej niesklasyfikowane","08.99.Z Pozostałe górnictwo i wydobywanie, gdzie indziej niesklasyfikowane"]
["10.52.Z"," Produkcja lodów","10.52.Z Produkcja lodów"]
["10.71.Z"," Produkcja pieczywa; produkcja świeżych wyrobów ciastkarskich i ciastek","10.71.Z Produkcja pieczywa; produkcja świeżych wyrobów ciastkarskich i ciastek"]
["10.72.Z"," Produkcja sucharów i herbatników; produkcja konserwowanych wyrobów ciastkarskich i ciastek","10.72.Z Produkcja sucharów i herbatników; produkcja konserwowanych wyrobów ciastkarskich i ciastek"]
["10.73.Z"," Produkcja makaronów, klusek, kuskusu i podobnych wyrobów mącznych","10.73.Z Produkcja makaronów, klusek, kuskusu i podobnych wyrobów mącznych"]
["10.82.Z"," Produkcja kakao, czekolady i wyrobów cukierniczych","10.82.Z Produkcja kakao, czekolady i wyrobów cukierniczych"]
["10.84.Z"," Produkcja przypraw","10.84.Z Produkcja przypraw"]
["10.85.Z"," Wytwarzanie gotowych posiłków i dań","10.85.Z Wytwarzanie gotowych posiłków i dań"]
["10.86.Z"," Produkcja artykułów spożywczych homogenizowanych i żywności dietetycznej","10.86.Z Produkcja artykułów spożywczych homogenizowanych i żywności dietetycznej"]
["10.89.Z"," Produkcja pozostałych artykułów spożywczych, gdzie indziej niesklasyfikowana","10.89.Z Produkcja pozostałych artykułów spożywczych, gdzie indziej niesklasyfikowana"]
["11.05.Z"," Produkcja piwa","11.05.Z Produkcja piwa"]
["11.07.Z"," Produkcja napojów bezalkoholowych; produkcja wód mineralnych i pozostałych wód butelkowanych","11.07.Z Produkcja napojów bezalkoholowych; produkcja wód mineralnych i pozostałych wód butelkowanych"]
["13.10.A"," Produkcja przędzy bawełnianej","13.10.A Produkcja przędzy bawełnianej"]
["13.10.B"," Produkcja przędzy wełnianej","13.10.B Produkcja przędzy wełnianej"]
["13.10.C"," Produkcja przędzy z włókien chemicznych","13.10.C Produkcja przędzy z włókien chemicznych"]
["13.20.A"," Produkcja tkanin bawełnianych","13.20.A Produkcja tkanin bawełnianych"]
["13.20.C"," Produkcja tkanin z włókien chemicznych","13.20.C Produkcja tkanin z włókien chemicznych"]
["13.20.D"," Produkcja pozostałych tkanin","13.20.D Produkcja pozostałych tkanin"]
["13.20.В"," Produkcja tkanin wełnianych","13.20.В Produkcja tkanin wełnianych"]
["13.30.Z"," Wykończanie wyrobów włókienniczych","13.30.Z Wykończanie wyrobów włókienniczych"]
["13.91.Z"," Produkcja dzianin metrażowych","13.91.Z Produkcja dzianin metrażowych"]
["13.92.Z"," Produkcja gotowych wyrobów tekstylnych","13.92.Z Produkcja gotowych wyrobów tekstylnych"]
["13.93.Z"," Produkcja dywanów i chodników","13.93.Z Produkcja dywanów i chodników"]
["13.94.Z"," Produkcja wyrobów powroźniczych, lin, szpagatów i wyrobów sieciowych","13.94.Z Produkcja wyrobów powroźniczych, lin, szpagatów i wyrobów sieciowych"]
["13.95.Z"," Produkcja włóknin i wyrobów wykonanych z włóknin, z wyłączeniem odzieży","13.95.Z Produkcja włóknin i wyrobów wykonanych z włóknin, z wyłączeniem odzieży"]
["13.96.Z"," Produkcja pozostałych technicznych i przemysłowych wyrobów tekstylnych","13.96.Z Produkcja pozostałych technicznych i przemysłowych wyrobów tekstylnych"]
["13.99.Z"," Produkcja pozostałych wyrobów tekstylnych, gdzie indziej niesklasyfikowana","13.99.Z Produkcja pozostałych wyrobów tekstylnych, gdzie indziej niesklasyfikowana"]
["14.11.Z"," Produkcja odzieży skórzanej","14.11.Z Produkcja odzieży skórzanej"]
["14.12.Z"," Produkcja odzieży roboczej","14.12.Z Produkcja odzieży roboczej"]
["14.13.Z"," Produkcja pozostałej odzieży wierzchniej","14.13.Z Produkcja pozostałej odzieży wierzchniej"]
["14.14.Z"," Produkcja bielizny","14.14.Z Produkcja bielizny"]
["14.19.Z"," Produkcja pozostałej odzieży i dodatków do odzieży","14.19.Z Produkcja pozostałej odzieży i dodatków do odzieży"]
["14.20.Z"," Produkcja wyrobów futrzarskich","14.20.Z Produkcja wyrobów futrzarskich"]
["14.31.Z"," Produkcja wyrobów pończoszniczych","14.31.Z Produkcja wyrobów pończoszniczych"]
["14.39.Z"," Produkcja pozostałej odzieży dzianej","14.39.Z Produkcja pozostałej odzieży dzianej"]
["15.11.Z"," Wyprawa skór, garbowanie; wyprawa i barwienie skór futerkowych","15.11.Z Wyprawa skór, garbowanie; wyprawa i barwienie skór futerkowych"]
["15.12.Z"," Produkcja toreb bagażowych, toreb ręcznych i podobnych wyrobów kaletniczych; produkcja wyrobów rymarskich","15.12.Z Produkcja toreb bagażowych, toreb ręcznych i podobnych wyrobów kaletniczych; produkcja wyrobów rymarskich"]
["15.20.Z"," Produkcja obuwia","15.20.Z Produkcja obuwia"]
["16.10.Z"," Produkcja wyrobów tartacznych","16.10.Z Produkcja wyrobów tartacznych"]
["16.21.Z"," Produkcja arkuszy fornirowych i płyt wykonanych na bazie drewna","16.21.Z Produkcja arkuszy fornirowych i płyt wykonanych na bazie drewna"]
["16.22.Z"," Produkcja gotowych parkietów podłogowych","16.22.Z Produkcja gotowych parkietów podłogowych"]
["16.23.Z"," Produkcja pozostałych wyrobów stolarskich i ciesielskich dla budownictwa","16.23.Z Produkcja pozostałych wyrobów stolarskich i ciesielskich dla budownictwa"]
["16.24.Z"," Produkcja opakowań drewnianych","16.24.Z Produkcja opakowań drewnianych"]
["16.29.Z"," Produkcja pozostałych wyrobów z drewna; produkcja wyrobów z korka, słomy i materiałów używanych do wyplatania","16.29.Z Produkcja pozostałych wyrobów z drewna; produkcja wyrobów z korka, słomy i materiałów używanych do wyplatania"]
["17.11.Z"," Produkcja masy włóknistej","17.11.Z Produkcja masy włóknistej"]
["17.12.Z"," Produkcja papieru i tektury","17.12.Z Produkcja papieru i tektury"]
["17.21.Z"," Produkcja papieru falistego i tektury falistej oraz opakowań z papieru i tektury","17.21.Z Produkcja papieru falistego i tektury falistej oraz opakowań z papieru i tektury"]
["17.22.Z"," Produkcja artykułów gospodarstwa domowego, toaletowych i sanitarnych","17.22.Z Produkcja artykułów gospodarstwa domowego, toaletowych i sanitarnych"]
["17.23.Z"," Produkcja artykułów piśmiennych","17.23.Z Produkcja artykułów piśmiennych"]
["17.24.Z"," Produkcja tapet","17.24.Z Produkcja tapet"]
["17.29.Z"," Produkcja pozostałych wyrobów z papieru i tektury","17.29.Z Produkcja pozostałych wyrobów z papieru i tektury"]
["18.12.Z"," Pozostałe drukowanie","18.12.Z Pozostałe drukowanie"]
["18.13.Z"," Działalność usługowa związana z przygotowywaniem do druku","18.13.Z Działalność usługowa związana z przygotowywaniem do druku"]
["18.14.Z"," Introligatorstwo i podobne usługi","18.14.Z Introligatorstwo i podobne usługi"]
["19.20.Z"," Wytwarzanie i przetwarzanie produktów rafinacji ropy naftowej","19.20.Z Wytwarzanie i przetwarzanie produktów rafinacji ropy naftowej"]
["20.41.Z"," Produkcja mydła i detergentów, środków myjących i czyszczących","20.41.Z Produkcja mydła i detergentów, środków myjących i czyszczących"]
["20.42.Z"," Produkcja wyrobów kosmetycznych i toaletowych","20.42.Z Produkcja wyrobów kosmetycznych i toaletowych"]
["20.53.Z"," Produkcja olejków eterycznych","20.53.Z Produkcja olejków eterycznych"]
["22.11.Z"," Produkcja opon i dętek z gumy; bieżnikowanie i regenerowanie opon z gumy",{"$f":"CONCATENATE(A66,B66)","v":"22.11.Z Produkcja opon i dętek z gumy; bieżnikowanie i regenerowanie opon z gumy"}]
["22.19.Z"," Produkcja pozostałych wyrobów z gumy","22.19.Z Produkcja pozostałych wyrobów z gumy"]
["22.21.Z"," Produkcja płyt, arkuszy, rur i kształtowników z tworzyw sztucznych","22.21.Z Produkcja płyt, arkuszy, rur i kształtowników z tworzyw sztucznych"]
["22.22.Z"," Produkcja opakowań z tworzyw sztucznych","22.22.Z Produkcja opakowań z tworzyw sztucznych"]
["22.23.Z"," Produkcja wyrobów dla budownictwa z tworzyw sztucznych","22.23.Z Produkcja wyrobów dla budownictwa z tworzyw sztucznych"]
["22.29.Z"," Produkcja pozostałych wyrobów z tworzyw sztucznych","22.29.Z Produkcja pozostałych wyrobów z tworzyw sztucznych"]
["23.11.Z"," Produkcja szkła płaskiego","23.11.Z Produkcja szkła płaskiego"]
["23.12.Z"," Kształtowanie i obróbka szkła płaskiego","23.12.Z Kształtowanie i obróbka szkła płaskiego"]
["23.13.Z"," Produkcja szkła gospodarczego","23.13.Z Produkcja szkła gospodarczego"]
["23.31.Z"," Produkcja ceramicznych kafli i płytek","23.31.Z Produkcja ceramicznych kafli i płytek"]
["23.32.Z"," Produkcja cegieł, dachówek i materiałów budowlanych, z wypalanej gliny","23.32.Z Produkcja cegieł, dachówek i materiałów budowlanych, z wypalanej gliny"]
["23.41.Z"," Produkcja ceramicznych wyrobów stołowych i ozdobnych","23.41.Z Produkcja ceramicznych wyrobów stołowych i ozdobnych"]
["23.42.Z"," Produkcja ceramicznych wyrobów sanitarnych","23.42.Z Produkcja ceramicznych wyrobów sanitarnych"]
["23.43.Z"," Produkcja ceramicznych izolatorów i osłon izolacyjnych","23.43.Z Produkcja ceramicznych izolatorów i osłon izolacyjnych"]
["23.44.Z"," Produkcja pozostałych technicznych wyrobów ceramicznych","23.44.Z Produkcja pozostałych technicznych wyrobów ceramicznych"]
["23.49.Z"," Produkcja pozostałych wyrobów ceramicznych","23.49.Z Produkcja pozostałych wyrobów ceramicznych"]
["23.61.Z"," Produkcja wyrobów budowlanych z betonu","23.61.Z Produkcja wyrobów budowlanych z betonu"]
["23.62.Z"," Produkcja wyrobów budowlanych z gipsu","23.62.Z Produkcja wyrobów budowlanych z gipsu"]
["23.63.Z"," Produkcja masy betonowej prefabrykowanej","23.63.Z Produkcja masy betonowej prefabrykowanej"]
["23.64.Z"," Produkcja zaprawy murarskiej","23.64.Z Produkcja zaprawy murarskiej"]
["23.65.Z"," Produkcja cementu wzmocnionego włóknem","23.65.Z Produkcja cementu wzmocnionego włóknem"]
["23.69.Z"," Produkcja pozostałych wyrobów z betonu, gipsu i cementu","23.69.Z Produkcja pozostałych wyrobów z betonu, gipsu i cementu"]
["23.70.Z"," Cięcie, formowanie i wykańczanie kamienia","23.70.Z Cięcie, formowanie i wykańczanie kamienia"]
["23.91.Z"," Produkcja wyrobów ściernych","23.91.Z Produkcja wyrobów ściernych"]
["23.99.Z"," Produkcja pozostałych wyrobów z mineralnych surowców niemetalicznych, gdzie indziej niesklasyfikowana","23.99.Z Produkcja pozostałych wyrobów z mineralnych surowców niemetalicznych, gdzie indziej niesklasyfikowana"]
["24.31.Z"," Produkcja prętów ciągnionych na zimno","24.31.Z Produkcja prętów ciągnionych na zimno"]
["24.32.Z"," Produkcja wyrobów płaskich walcowanych na zimno","24.32.Z Produkcja wyrobów płaskich walcowanych na zimno"]
["24.33.Z"," Produkcja wyrobów formowanych na zimno","24.33.Z Produkcja wyrobów formowanych na zimno"]
["24.34.Z"," Produkcja drutu","24.34.Z Produkcja drutu"]
["24.44.Z"," Produkcja miedzi","24.44.Z Produkcja miedzi"]
["24.51.Z"," Odlewnictwo żeliwa","24.51.Z Odlewnictwo żeliwa"]
["24.52.Z"," Odlewnictwo staliwa","24.52.Z Odlewnictwo staliwa"]
["24.53.Z"," Odlewnictwo metali lekkich","24.53.Z Odlewnictwo metali lekkich"]
["24.54.A"," Odlewnictwo miedzi i stopów miedzi","24.54.A Odlewnictwo miedzi i stopów miedzi"]
["24.54.В"," Odlewnictwo pozostałych metali nieżelaznych, gdzie indziej niesklasyfikowane","24.54.В Odlewnictwo pozostałych metali nieżelaznych, gdzie indziej niesklasyfikowane"]
["25.11.Z"," Produkcja konstrukcji metalowych i ich części","25.11.Z Produkcja konstrukcji metalowych i ich części"]
["25.12.Z"," Produkcja metalowych elementów stolarki budowlanej","25.12.Z Produkcja metalowych elementów stolarki budowlanej"]
["25.21.Z"," Produkcja grzejników i kotłów centralnego ogrzewania","25.21.Z Produkcja grzejników i kotłów centralnego ogrzewania"]
["25.29.Z"," Produkcja pozostałych zbiorników, cystern i pojemników metalowych","25.29.Z Produkcja pozostałych zbiorników, cystern i pojemników metalowych"]
["25.30.Z"," Produkcja wytwornic pary, z wyłączeniem kotłów do centralnego ogrzewania gorącą wodą","25.30.Z Produkcja wytwornic pary, z wyłączeniem kotłów do centralnego ogrzewania gorącą wodą"]
["25.50.Z"," Kucie, prasowanie, wytłaczanie i walcowanie metali; metalurgia proszków","25.50.Z Kucie, prasowanie, wytłaczanie i walcowanie metali; metalurgia proszków"]
["25.61.Z"," Obróbka metali i nakładanie powłok na metale","25.61.Z Obróbka metali i nakładanie powłok na metale"]
["25.62.Z"," Obróbka mechaniczna elementów metalowych","25.62.Z Obróbka mechaniczna elementów metalowych"]
["25.71.Z"," Produkcja wyrobów nożowniczych i sztućców","25.71.Z Produkcja wyrobów nożowniczych i sztućców"]
["25.72.Z"," Produkcja zamków i zawiasów","25.72.Z Produkcja zamków i zawiasów"]
["25.73.Z"," Produkcja narzędzi","25.73.Z Produkcja narzędzi"]
["25.91.Z"," Produkcja pojemników metalowych","25.91.Z Produkcja pojemników metalowych"]
["25.92.Z"," Produkcja opakowań z metali","25.92.Z Produkcja opakowań z metali"]
["25.93.Z"," Produkcja wyrobów z drutu, łańcuchów i sprężyn","25.93.Z Produkcja wyrobów z drutu, łańcuchów i sprężyn"]
["25.94.Z"," Produkcja złączy i śrub","25.94.Z Produkcja złączy i śrub"]
["25.99.Z"," Produkcja pozostałych gotowych wyrobów metalowych, gdzie indziej niesklasyfikowana","25.99.Z Produkcja pozostałych gotowych wyrobów metalowych, gdzie indziej niesklasyfikowana"]
["26.11.Z"," Produkcja elementów elektronicznych","26.11.Z Produkcja elementów elektronicznych"]
["26.40.Z"," Produkcja elektronicznego sprzętu powszechnego użytku","26.40.Z Produkcja elektronicznego sprzętu powszechnego użytku"]
["26.51.Z"," Produkcja instrumentów i przyrządów pomiarowych, kontrolnych i nawigacyjnych","26.51.Z Produkcja instrumentów i przyrządów pomiarowych, kontrolnych i nawigacyjnych"]
["26.52.Z"," Produkcja zegarków i zegarów","26.52.Z Produkcja zegarków i zegarów"]
["26.70.Z"," Produkcja instrumentów optycznych i sprzętu fotograficznego","26.70.Z Produkcja instrumentów optycznych i sprzętu fotograficznego"]
["27.12.Z"," Produkcja aparatury rozdzielczej i sterowniczej energii elektrycznej","27.12.Z Produkcja aparatury rozdzielczej i sterowniczej energii elektrycznej"]
["27.31.Z"," Produkcja kabli światłowodowych","27.31.Z Produkcja kabli światłowodowych"]
["27.32.Z"," Produkcja pozostałych elektronicznych i elektrycznych przewodów i kabli","27.32.Z Produkcja pozostałych elektronicznych i elektrycznych przewodów i kabli"]
["27.33.Z"," Produkcja sprzętu instalacyjnego","27.33.Z Produkcja sprzętu instalacyjnego"]
["27.40.Z"," Produkcja elektrycznego sprzętu oświetleniowego","27.40.Z Produkcja elektrycznego sprzętu oświetleniowego"]
["27.51.Z"," Produkcja elektrycznego sprzętu gospodarstwa domowego","27.51.Z Produkcja elektrycznego sprzętu gospodarstwa domowego"]
["27.52.Z"," Produkcja nieelektrycznego sprzętu gospodarstwa domowego","27.52.Z Produkcja nieelektrycznego sprzętu gospodarstwa domowego"]
["27.90.Z"," Produkcja pozostałego sprzętu elektrycznego","27.90.Z Produkcja pozostałego sprzętu elektrycznego"]
["28.11.Z"," Produkcja silników i turbin, z wyłączeniem silników lotniczych, samochodowych i motocyklowych",{"$f":"CONCATENATE(A130,B130)","v":"28.11.Z Produkcja silników i turbin, z wyłączeniem silników lotniczych, samochodowych i motocyklowych"}]
["28.12.Z"," Produkcja sprzętu i wyposażenia do napędu hydraulicznego i pneumatycznego","28.12.Z Produkcja sprzętu i wyposażenia do napędu hydraulicznego i pneumatycznego"]
["28.14.Z"," Produkcja pozostałych kurków i zaworów","28.14.Z Produkcja pozostałych kurków i zaworów"]
["28.21.Z"," Produkcja pieców, palenisk i palników piecowych","28.21.Z Produkcja pieców, palenisk i palników piecowych"]
["28.22.Z"," Produkcja urządzeń dźwigowych i chwytaków","28.22.Z Produkcja urządzeń dźwigowych i chwytaków"]
["28.23.Z"," Produkcja maszyn i sprzętu biurowego, z wyłączeniem komputerów i urządzeń peryferyjnych","28.23.Z Produkcja maszyn i sprzętu biurowego, z wyłączeniem komputerów i urządzeń peryferyjnych"]
["28.24.Z"," Produkcja narzędzi ręcznych mechanicznych","28.24.Z Produkcja narzędzi ręcznych mechanicznych"]
["28.29.Z"," Produkcja pozostałych maszyn ogólnego przeznaczenia, gdzie indziej niesklasyfikowana","28.29.Z Produkcja pozostałych maszyn ogólnego przeznaczenia, gdzie indziej niesklasyfikowana"]
["28.30.Z"," Produkcja maszyn dla rolnictwa i leśnictwa","28.30.Z Produkcja maszyn dla rolnictwa i leśnictwa"]
["28.41.Z"," Produkcja maszyn do obróbki metalu","28.41.Z Produkcja maszyn do obróbki metalu"]
["28.49.Z"," Produkcja pozostałych narzędzi mechanicznych","28.49.Z Produkcja pozostałych narzędzi mechanicznych"]
["28.93.Z"," Produkcja maszyn stosowanych w przetwórstwie żywności, tytoniu i produkcji napojów","28.93.Z Produkcja maszyn stosowanych w przetwórstwie żywności, tytoniu i produkcji napojów"]
["28.94.Z"," Produkcja maszyn dla przemysłu tekstylnego, odzieżowego i skórzanego","28.94.Z Produkcja maszyn dla przemysłu tekstylnego, odzieżowego i skórzanego"]
["28.95.Z"," Produkcja maszyn dla przemysłu papierniczego","28.95.Z Produkcja maszyn dla przemysłu papierniczego"]
["28.96.Z"," Produkcja maszyn do obróbki gumy lub tworzyw sztucznych oraz wytwarzania wyrobów z tych materiałów","28.96.Z Produkcja maszyn do obróbki gumy lub tworzyw sztucznych oraz wytwarzania wyrobów z tych materiałów"]
["28.99.Z"," Produkcja pozostałych maszyn specjalnego przeznaczenia, gdzie indziej niesklasyfikowana","28.99.Z Produkcja pozostałych maszyn specjalnego przeznaczenia, gdzie indziej niesklasyfikowana"]
["29.32.Z"," Produkcja pozostałych części i akcesoriów do pojazdów silnikowych, z wyłączeniem motocykli","29.32.Z Produkcja pozostałych części i akcesoriów do pojazdów silnikowych, z wyłączeniem motocykli"]
["30.11.Z"," Produkcja statków i konstrukcji pływających","30.11.Z Produkcja statków i konstrukcji pływających"]
["30.12.Z"," Produkcja łodzi wycieczkowych i sportowych","30.12.Z Produkcja łodzi wycieczkowych i sportowych"]
["30.20.Z"," Produkcja lokomotyw kolejowych oraz taboru szynowego","30.20.Z Produkcja lokomotyw kolejowych oraz taboru szynowego"]
["30.30.Z"," Produkcja statków powietrznych, statków kosmicznych i podobnych maszyn","30.30.Z Produkcja statków powietrznych, statków kosmicznych i podobnych maszyn"]
["30.92.Z"," Produkcja rowerów i wózków inwalidzkich","30.92.Z Produkcja rowerów i wózków inwalidzkich"]
["30.99.Z"," Produkcja pozostałego sprzętu transportowego, gdzie indziej niesklasyfikowana","30.99.Z Produkcja pozostałego sprzętu transportowego, gdzie indziej niesklasyfikowana"]
["31.01.Z"," Produkcja mebli biurowych i sklepowych","31.01.Z Produkcja mebli biurowych i sklepowych"]
["31.02.Z"," Produkcja mebli kuchennych","31.02.Z Produkcja mebli kuchennych"]
["31.03.Z"," Produkcja materaców","31.03.Z Produkcja materaców"]
["31.09.Z"," Produkcja pozostałych mebli","31.09.Z Produkcja pozostałych mebli"]
["32.11.Z"," Produkcja monet","32.11.Z Produkcja monet"]
["32.12.Z"," Produkcja wyrobów jubilerskich i podobnych","32.12.Z Produkcja wyrobów jubilerskich i podobnych"]
["32.13.Z"," Produkcja sztucznej biżuterii i wyrobów podobnych","32.13.Z Produkcja sztucznej biżuterii i wyrobów podobnych"]
["32.20.Z"," Produkcja instrumentów muzycznych","32.20.Z Produkcja instrumentów muzycznych"]
["32.30.Z"," Produkcja sprzętu sportowego","32.30.Z Produkcja sprzętu sportowego"]
["32.40.Z"," Produkcja gier i zabawek","32.40.Z Produkcja gier i zabawek"]
["32.50.Z"," Produkcja urządzeń, instrumentów oraz wyrobów medycznych, włączając dentystyczne","32.50.Z Produkcja urządzeń, instrumentów oraz wyrobów medycznych, włączając dentystyczne"]
["32.91.Z"," Produkcja mioteł, szczotek i pędzli","32.91.Z Produkcja mioteł, szczotek i pędzli"]
["32.99.Z"," Produkcja pozostałych wyrobów, gdzie indziej niesklasyfikowana","32.99.Z Produkcja pozostałych wyrobów, gdzie indziej niesklasyfikowana"]
["33.11.Z"," Naprawa i konserwacja metalowych wyrobów gotowych","33.11.Z Naprawa i konserwacja metalowych wyrobów gotowych"]
["33.12.Z"," Naprawa i konserwacja maszyn","33.12.Z Naprawa i konserwacja maszyn"]
["33.13.Z"," Naprawa i konserwacja urządzeń elektronicznych i optycznych","33.13.Z Naprawa i konserwacja urządzeń elektronicznych i optycznych"]
["33.14.Z"," Naprawa i konserwacja urządzeń elektrycznych","33.14.Z Naprawa i konserwacja urządzeń elektrycznych"]
["33.15.Z"," Naprawa i konserwacja statków i łodzi","33.15.Z Naprawa i konserwacja statków i łodzi"]
["33.16.Z"," Naprawa i konserwacja statków powietrznych i statków kosmicznych","33.16.Z Naprawa i konserwacja statków powietrznych i statków kosmicznych"]
["33.17.Z"," Naprawa i konserwacja pozostałego sprzętu transportowego","33.17.Z Naprawa i konserwacja pozostałego sprzętu transportowego"]
["33.19.Z"," Naprawa i konserwacja pozostałego sprzętu i wyposażenia","33.19.Z Naprawa i konserwacja pozostałego sprzętu i wyposażenia"]
["33.20.Z"," Instalowanie maszyn przemysłowych, sprzętu i wyposażenia","33.20.Z Instalowanie maszyn przemysłowych, sprzętu i wyposażenia"]
["35.11.Z"," Wytwarzanie energii elektrycznej","35.11.Z Wytwarzanie energii elektrycznej"]
["35.12.Z"," Przesyłanie energii elektrycznej","35.12.Z Przesyłanie energii elektrycznej"]
["35.13.Z"," Dystrybucja energii elektrycznej","35.13.Z Dystrybucja energii elektrycznej"]
["35.14.Z"," Handel energią elektryczną","35.14.Z Handel energią elektryczną"]
["35.21.Z"," Wytwarzanie paliw gazowych","35.21.Z Wytwarzanie paliw gazowych"]
["35.30.Z"," Wytwarzanie i zaopatrywanie w parę wodną, gorącą wodę i powietrze do układów klimatyzacyjnych","35.30.Z Wytwarzanie i zaopatrywanie w parę wodną, gorącą wodę i powietrze do układów klimatyzacyjnych"]
["37.00.Z"," Odprowadzanie i oczyszczanie ścieków","37.00.Z Odprowadzanie i oczyszczanie ścieków"]
["38.11.Z"," Zbieranie odpadów innych niż niebezpieczne","38.11.Z Zbieranie odpadów innych niż niebezpieczne"]
["38.12.Z"," Zbieranie odpadów niebezpiecznych","38.12.Z Zbieranie odpadów niebezpiecznych"]
["38.21.Z"," Obróbka i usuwanie odpadów innych niż niebezpieczne","38.21.Z Obróbka i usuwanie odpadów innych niż niebezpieczne"]
["38.22.Z"," Przetwarzanie i unieszkodliwianie odpadów niebezpiecznych","38.22.Z Przetwarzanie i unieszkodliwianie odpadów niebezpiecznych"]
["38.31.Z"," Demontaż wyrobów zużytych","38.31.Z Demontaż wyrobów zużytych"]
["38.32.Z"," Odzysk surowców z materiałów segregowanych","38.32.Z Odzysk surowców z materiałów segregowanych"]
["39.00.Z"," Działalność związana z rekultywacją i pozostała działalność usługowa związana z gospodarką odpadami","39.00.Z Działalność związana z rekultywacją i pozostała działalność usługowa związana z gospodarką odpadami"]
["41.10.Z"," Realizacja projektów budowlanych związanych ze wznoszeniem budynków","41.10.Z Realizacja projektów budowlanych związanych ze wznoszeniem budynków"]
["41.20.Z"," Roboty budowlane związane ze wznoszeniem budynków mieszkalnych i niemieszkalnych","41.20.Z Roboty budowlane związane ze wznoszeniem budynków mieszkalnych i niemieszkalnych"]
["42.11.Z"," Roboty związane z budową dróg i autostrad","42.11.Z Roboty związane z budową dróg i autostrad"]
["42.21.Z"," Roboty związane z budową rurociągów przesyłowych i sieci rozdzielczych","42.21.Z Roboty związane z budową rurociągów przesyłowych i sieci rozdzielczych"]
["42.99.Z"," Roboty związane z budową pozostałych obiektów inżynierii lądowej i wodnej, gdzie indziej niesklasyfikowane","42.99.Z Roboty związane z budową pozostałych obiektów inżynierii lądowej i wodnej, gdzie indziej niesklasyfikowane"]
["43.11.Z"," Rozbiórka i burzenie obiektów budowlanych",{"$f":"CONCATENATE(A194,B194)","v":"43.11.Z Rozbiórka i burzenie obiektów budowlanych"}]
["43.12.Z"," Przygotowanie terenu pod budowę","43.12.Z Przygotowanie terenu pod budowę"]
["43.13.Z"," Wykonywanie wykopów i wierceń geologiczno-inżynierskich","43.13.Z Wykonywanie wykopów i wierceń geologiczno-inżynierskich"]
["43.21.Z"," Wykonywanie instalacji elektrycznych","43.21.Z Wykonywanie instalacji elektrycznych"]
["43.22.Z"," Wykonywanie instalacji wodno-kanalizacyjnych, cieplnych, gazowych i klimatyzacyjnych","43.22.Z Wykonywanie instalacji wodno-kanalizacyjnych, cieplnych, gazowych i klimatyzacyjnych"]
["43.29.Z"," Wykonywanie pozostałych instalacji budowlanych","43.29.Z Wykonywanie pozostałych instalacji budowlanych"]
["43.31.Z"," Tynkowanie","43.31.Z Tynkowanie"]
["43.32.Z"," Zakładanie stolarki budowlanej","43.32.Z Zakładanie stolarki budowlanej"]
["43.33.Z"," Posadzkarstwo; tapetowanie i oblicowywanie ścian","43.33.Z Posadzkarstwo; tapetowanie i oblicowywanie ścian"]
["43.34.Z"," Malowanie i szklenie","43.34.Z Malowanie i szklenie"]
["43.39.Z"," Wykonywanie pozostałych robót budowlanych wykończeniowych","43.39.Z Wykonywanie pozostałych robót budowlanych wykończeniowych"]
["43.91.Z"," Wykonywanie konstrukcji i pokryć dachowych","43.91.Z Wykonywanie konstrukcji i pokryć dachowych"]
["43.99.Z"," Pozostałe specjalistyczne roboty budowlane, gdzie indziej niesklasyfikowane","43.99.Z Pozostałe specjalistyczne roboty budowlane, gdzie indziej niesklasyfikowane"]
["45.11.Z"," Sprzedaż hurtowa i detaliczna samochodów osobowych i furgonetek","45.11.Z Sprzedaż hurtowa i detaliczna samochodów osobowych i furgonetek"]
["45.19.Z"," Sprzedaż hurtowa i detaliczna pozostałych pojazdów samochodowych, z wyłączeniem motocykli","45.19.Z Sprzedaż hurtowa i detaliczna pozostałych pojazdów samochodowych, z wyłączeniem motocykli"]
["45.20.Z"," Konserwacja i naprawa pojazdów samochodowych, z wyłączeniem motocykli","45.20.Z Konserwacja i naprawa pojazdów samochodowych, z wyłączeniem motocykli"]
["45.31.Z"," Sprzedaż hurtowa części i akcesoriów do pojazdów samochodowych, z wyłączeniem motocykli","45.31.Z Sprzedaż hurtowa części i akcesoriów do pojazdów samochodowych, z wyłączeniem motocykli"]
["45.32.Z"," Sprzedaż detaliczna części i akcesoriów do pojazdów samochodowych, z wyłączeniem motocykli","45.32.Z Sprzedaż detaliczna części i akcesoriów do pojazdów samochodowych, z wyłączeniem motocykli"]
["45.40.Z"," Sprzedaż hurtowa i detaliczna motocykli, ich naprawa i konserwacja oraz sprzedaż hurtowa i detaliczna części i akcesoriów do nich","45.40.Z Sprzedaż hurtowa i detaliczna motocykli, ich naprawa i konserwacja oraz sprzedaż hurtowa i detaliczna części i akcesoriów do nich"]
["46.12.Z"," Działalność agentów zajmujących się sprzedażą paliw, rud, metali i chemikaliów przemysłowych","46.12.Z Działalność agentów zajmujących się sprzedażą paliw, rud, metali i chemikaliów przemysłowych"]
["46.13.Z"," Działalność agentów zajmujących się sprzedażą drewna i materiałów budowlanych","46.13.Z Działalność agentów zajmujących się sprzedażą drewna i materiałów budowlanych"]
["46.14.Z"," Działalność agentów zajmujących się sprzedażą maszyn, urządzeń przemysłowych, statków i samolotów","46.14.Z Działalność agentów zajmujących się sprzedażą maszyn, urządzeń przemysłowych, statków i samolotów"]
["46.15.Z"," Działalność agentów zajmujących się sprzedażą mebli, artykułów gospodarstwa domowego i drobnych wyrobów metalowych","46.15.Z Działalność agentów zajmujących się sprzedażą mebli, artykułów gospodarstwa domowego i drobnych wyrobów metalowych"]
["46.16.Z"," Działalność agentów zajmujących się sprzedażą wyrobów tekstylnych, odzieży, wyrobów futrzarskich, obuwia i artykułów skórzanych","46.16.Z Działalność agentów zajmujących się sprzedażą wyrobów tekstylnych, odzieży, wyrobów futrzarskich, obuwia i artykułów skórzanych"]
["46.18.Z"," Działalność agentów specjalizujących się w sprzedaży pozostałych określonych towarów","46.18.Z Działalność agentów specjalizujących się w sprzedaży pozostałych określonych towarów"]
["46.19.Z"," Działalność agentów zajmujących się sprzedażą towarów różnego rodzaju","46.19.Z Działalność agentów zajmujących się sprzedażą towarów różnego rodzaju"]
["46.24.Z"," Sprzedaż hurtowa skór","46.24.Z Sprzedaż hurtowa skór"]
["46.41.Z"," Sprzedaż hurtowa wyrobów tekstylnych","46.41.Z Sprzedaż hurtowa wyrobów tekstylnych"]
["46.42.Z"," Sprzedaż hurtowa odzieży i obuwia","46.42.Z Sprzedaż hurtowa odzieży i obuwia"]
["46.43.Z"," Sprzedaż hurtowa elektrycznych artykułów użytku domowego","46.43.Z Sprzedaż hurtowa elektrycznych artykułów użytku domowego"]
["46.44.Z"," Sprzedaż hurtowa wyrobów porcelanowych, ceramicznych i szklanych oraz środków czyszczących","46.44.Z Sprzedaż hurtowa wyrobów porcelanowych, ceramicznych i szklanych oraz środków czyszczących"]
["46.45.Z"," Sprzedaż hurtowa perfum i kosmetyków","46.45.Z Sprzedaż hurtowa perfum i kosmetyków"]
["46.46.Z"," Sprzedaż hurtowa wyrobów farmaceutycznych i medycznych","46.46.Z Sprzedaż hurtowa wyrobów farmaceutycznych i medycznych"]
["46.47.Z"," Sprzedaż hurtowa mebli, dywanów i sprzętu oświetleniowego","46.47.Z Sprzedaż hurtowa mebli, dywanów i sprzętu oświetleniowego"]
["46.48.Z"," Sprzedaż hurtowa zegarków, zegarów i biżuterii","46.48.Z Sprzedaż hurtowa zegarków, zegarów i biżuterii"]
["46.49.Z"," Sprzedaż hurtowa pozostałych artykułów użytku domowego","46.49.Z Sprzedaż hurtowa pozostałych artykułów użytku domowego"]
["46.51.Z"," Sprzedaż hurtowa komputerów, urządzeń peryferyjnych i oprogramowania","46.51.Z Sprzedaż hurtowa komputerów, urządzeń peryferyjnych i oprogramowania"]
["46.52.Z"," Sprzedaż hurtowa sprzętu elektronicznego i telekomunikacyjnego oraz części do niego","46.52.Z Sprzedaż hurtowa sprzętu elektronicznego i telekomunikacyjnego oraz części do niego"]
["46.61.Z"," Sprzedaż hurtowa maszyn i urządzeń rolniczych oraz dodatkowego wyposażenia","46.61.Z Sprzedaż hurtowa maszyn i urządzeń rolniczych oraz dodatkowego wyposażenia"]
["46.62.Z"," Sprzedaż hurtowa obrabiarek","46.62.Z Sprzedaż hurtowa obrabiarek"]
["46.63.Z"," Sprzedaż hurtowa maszyn wykorzystywanych w górnictwie, budownictwie oraz inżynierii lądowej i wodnej","46.63.Z Sprzedaż hurtowa maszyn wykorzystywanych w górnictwie, budownictwie oraz inżynierii lądowej i wodnej"]
["46.64.Z"," Sprzedaż hurtowa maszyn dla przemysłu tekstylnego oraz maszyn do szycia i maszyn dziewiarskich","46.64.Z Sprzedaż hurtowa maszyn dla przemysłu tekstylnego oraz maszyn do szycia i maszyn dziewiarskich"]
["46.65.Z"," Sprzedaż hurtowa mebli biurowych","46.65.Z Sprzedaż hurtowa mebli biurowych"]
["46.66.Z"," Sprzedaż hurtowa pozostałych maszyn i urządzeń biurowych","46.66.Z Sprzedaż hurtowa pozostałych maszyn i urządzeń biurowych"]
["46.69.Z"," Sprzedaż hurtowa pozostałych maszyn i urządzeń","46.69.Z Sprzedaż hurtowa pozostałych maszyn i urządzeń"]
["46.71.Z"," Sprzedaż hurtowa paliw i produktów pochodnych","46.71.Z Sprzedaż hurtowa paliw i produktów pochodnych"]
["46.72.Z"," Sprzedaż hurtowa metali i rud metali","46.72.Z Sprzedaż hurtowa metali i rud metali"]
["46.73.Z"," Sprzedaż hurtowa drewna, materiałów budowlanych i wyposażenia sanitarnego","46.73.Z Sprzedaż hurtowa drewna, materiałów budowlanych i wyposażenia sanitarnego"]
["46.74.Z"," Sprzedaż hurtowa wyrobów metalowych oraz sprzętu i dodatkowego wyposażenia hydraulicznego i grzejnego","46.74.Z Sprzedaż hurtowa wyrobów metalowych oraz sprzętu i dodatkowego wyposażenia hydraulicznego i grzejnego"]
["46.75.Z"," Sprzedaż hurtowa wyrobów chemicznych","46.75.Z Sprzedaż hurtowa wyrobów chemicznych"]
["46.76.Z"," Sprzedaż hurtowa pozostałych półproduktów","46.76.Z Sprzedaż hurtowa pozostałych półproduktów"]
["46.77.Z"," Sprzedaż hurtowa odpadów i złomu","46.77.Z Sprzedaż hurtowa odpadów i złomu"]
["46.90.Z"," Sprzedaż hurtowa niewyspecjalizowana","46.90.Z Sprzedaż hurtowa niewyspecjalizowana"]
["47.11.Z"," Sprzedaż detaliczna prowadzona w niewyspecjalizowanych sklepach z przewagą żywności, napojów i wyrobów tytoniowych","47.11.Z Sprzedaż detaliczna prowadzona w niewyspecjalizowanych sklepach z przewagą żywności, napojów i wyrobów tytoniowych"]
["47.19.Z"," Pozostała sprzedaż detaliczna prowadzona w niewyspecjalizowanych sklepach","47.19.Z Pozostała sprzedaż detaliczna prowadzona w niewyspecjalizowanych sklepach"]
["47.24.Z"," Sprzedaż detaliczna pieczywa, ciast, wyrobów ciastkarskich i cukierniczych prowadzona w wyspecjalizowanych sklepach","47.24.Z Sprzedaż detaliczna pieczywa, ciast, wyrobów ciastkarskich i cukierniczych prowadzona w wyspecjalizowanych sklepach"]
["47.30.Z"," Sprzedaż detaliczna paliw do pojazdów silnikowych na stacjach paliw","47.30.Z Sprzedaż detaliczna paliw do pojazdów silnikowych na stacjach paliw"]
["47.41.Z"," Sprzedaż detaliczna komputerów, urządzeń peryferyjnych i oprogramowania prowadzona w wyspecjalizowanych sklepach","47.41.Z Sprzedaż detaliczna komputerów, urządzeń peryferyjnych i oprogramowania prowadzona w wyspecjalizowanych sklepach"]
["47.42.Z"," Sprzedaż detaliczna sprzętu telekomunikacyjnego prowadzona w wyspecjalizowanych sklepach","47.42.Z Sprzedaż detaliczna sprzętu telekomunikacyjnego prowadzona w wyspecjalizowanych sklepach"]
["47.43.Z"," Sprzedaż detaliczna sprzętu audiowizualnego prowadzona w wyspecjalizowanych sklepach","47.43.Z Sprzedaż detaliczna sprzętu audiowizualnego prowadzona w wyspecjalizowanych sklepach"]
["47.51.Z"," Sprzedaż detaliczna wyrobów tekstylnych prowadzona w wyspecjalizowanych sklepach","47.51.Z Sprzedaż detaliczna wyrobów tekstylnych prowadzona w wyspecjalizowanych sklepach"]
["47.52.Z"," Sprzedaż detaliczna drobnych wyrobów metalowych, farb i szkła prowadzona w wyspecjalizowanych sklepach","47.52.Z Sprzedaż detaliczna drobnych wyrobów metalowych, farb i szkła prowadzona w wyspecjalizowanych sklepach"]
["47.53.Z"," Sprzedaż detaliczna dywanów, chodników i innych pokryć podłogowych oraz pokryć ściennych prowadzona w wyspecjalizowanych sklepach","47.53.Z Sprzedaż detaliczna dywanów, chodników i innych pokryć podłogowych oraz pokryć ściennych prowadzona w wyspecjalizowanych sklepach"]
["47.54.Z"," Sprzedaż detaliczna elektrycznego sprzętu gospodarstwa domowego prowadzona w wyspecjalizowanych sklepach","47.54.Z Sprzedaż detaliczna elektrycznego sprzętu gospodarstwa domowego prowadzona w wyspecjalizowanych sklepach"]
["47.59.Z"," Sprzedaż detaliczna mebli, sprzętu oświetleniowego i pozostałych artykułów użytku domowego prowadzona w wyspecjalizowanych sklepach",{"$f":"CONCATENATE(A258,B258)","v":"47.59.Z Sprzedaż detaliczna mebli, sprzętu oświetleniowego i pozostałych artykułów użytku domowego prowadzona w wyspecjalizowanych sklepach"}]
["47.61.Z"," Sprzedaż detaliczna książek prowadzona w wyspecjalizowanych sklepach","47.61.Z Sprzedaż detaliczna książek prowadzona w wyspecjalizowanych sklepach"]
["47.62.Z"," Sprzedaż detaliczna gazet i artykułów piśmiennych prowadzona w wyspecjalizowanych sklepach","47.62.Z Sprzedaż detaliczna gazet i artykułów piśmiennych prowadzona w wyspecjalizowanych sklepach"]
["47.63.Z"," Sprzedaż detaliczna nagrań dźwiękowych i audiowizualnych prowadzona w wyspecjalizowanych sklepach","47.63.Z Sprzedaż detaliczna nagrań dźwiękowych i audiowizualnych prowadzona w wyspecjalizowanych sklepach"]
["47.64.Z"," Sprzedaż detaliczna sprzętu sportowego prowadzona w wyspecjalizowanych sklepach","47.64.Z Sprzedaż detaliczna sprzętu sportowego prowadzona w wyspecjalizowanych sklepach"]
["47.65.Z"," Sprzedaż detaliczna gier i zabawek prowadzona w wyspecjalizowanych sklepach","47.65.Z Sprzedaż detaliczna gier i zabawek prowadzona w wyspecjalizowanych sklepach"]
["47.71.Z"," Sprzedaż detaliczna odzieży prowadzona w wyspecjalizowanych sklepach","47.71.Z Sprzedaż detaliczna odzieży prowadzona w wyspecjalizowanych sklepach"]
["47.72.Z"," Sprzedaż detaliczna obuwia i wyrobów skórzanych prowadzona w wyspecjalizowanych sklepach","47.72.Z Sprzedaż detaliczna obuwia i wyrobów skórzanych prowadzona w wyspecjalizowanych sklepach"]
["47.73.Z"," Sprzedaż detaliczna wyrobów farmaceutycznych prowadzona w wyspecjalizowanych sklepach","47.73.Z Sprzedaż detaliczna wyrobów farmaceutycznych prowadzona w wyspecjalizowanych sklepach"]
["47.74.Z"," Sprzedaż detaliczna wyrobów medycznych, włączając ortopedyczne, prowadzona w wyspecjalizowanych sklepach","47.74.Z Sprzedaż detaliczna wyrobów medycznych, włączając ortopedyczne, prowadzona w wyspecjalizowanych sklepach"]
["47.75.Z"," Sprzedaż detaliczna kosmetyków i artykułów toaletowych prowadzona w wyspecjalizowanych sklepach",{"$f":"CONCATENATE(A268,B268)","v":"47.75.Z Sprzedaż detaliczna kosmetyków i artykułów toaletowych prowadzona w wyspecjalizowanych sklepach"}]
["47.76.Z"," Sprzedaż detaliczna kwiatów, roślin, nasion, nawozów, żywych zwierząt domowych i karmy dla zwierząt domowych prowadzona w wyspecjalizowanych sklepach",{"$f":"CONCATENATE(A269,B269)","v":"47.76.Z Sprzedaż detaliczna kwiatów, roślin, nasion, nawozów, żywych zwierząt domowych i karmy dla zwierząt domowych prowadzona w wyspecjalizowanych sklepach"}]
["47.77.Z"," Sprzedaż detaliczna zegarków, zegarów i biżuterii prowadzona w wyspecjalizowanych sklepach","47.77.Z Sprzedaż detaliczna zegarków, zegarów i biżuterii prowadzona w wyspecjalizowanych sklepach"]
["47.78.Z"," Sprzedaż detaliczna pozostałych nowych wyrobów prowadzona w wyspecjalizowanych sklepach","47.78.Z Sprzedaż detaliczna pozostałych nowych wyrobów prowadzona w wyspecjalizowanych sklepach"]
["47.79.Z"," Sprzedaż detaliczna artykułów używanych prowadzona w wyspecjalizowanych sklepach","47.79.Z Sprzedaż detaliczna artykułów używanych prowadzona w wyspecjalizowanych sklepach"]
["47.82.Z"," Sprzedaż detaliczna wyrobów tekstylnych, odzieży i obuwia prowadzona na straganach i targowiskach","47.82.Z Sprzedaż detaliczna wyrobów tekstylnych, odzieży i obuwia prowadzona na straganach i targowiskach"]
["47.89.Z"," Sprzedaż detaliczna pozostałych wyrobów prowadzona na straganach i targowiskach","47.89.Z Sprzedaż detaliczna pozostałych wyrobów prowadzona na straganach i targowiskach"]
["47.91.Z"," Sprzedaż detaliczna prowadzona przez domy sprzedaży wysyłkowej lub Internet","47.91.Z Sprzedaż detaliczna prowadzona przez domy sprzedaży wysyłkowej lub Internet"]
["47.99.Z"," i targowiskami Pozostała sprzedaż detaliczna prowadzona poza siecią sklepową, straganami","47.99.Z i targowiskami Pozostała sprzedaż detaliczna prowadzona poza siecią sklepową, straganami"]
["49.31.Z"," Transport lądowy pasażerski, miejski i podmiejski","49.31.Z Transport lądowy pasażerski, miejski i podmiejski"]
["49.32.Z"," Działalność taksówek osobowych","49.32.Z Działalność taksówek osobowych"]
["49.39.Z"," Pozostały transport lądowy pasażerski, gdzie indziej niesklasyfikowany","49.39.Z Pozostały transport lądowy pasażerski, gdzie indziej niesklasyfikowany"]
["49.41.Z"," Transport drogowy towarów","49.41.Z Transport drogowy towarów"]
["49.42.Z"," Działalność usługowa związana z przeprowadzkami","49.42.Z Działalność usługowa związana z przeprowadzkami"]
["50.10.Z"," Transport morski i przybrzeżny pasażerski","50.10.Z Transport morski i przybrzeżny pasażerski"]
["50.20.Z"," Transport morski i przybrzeżny towarów","50.20.Z Transport morski i przybrzeżny towarów"]
["50.30.Z"," Transport wodny śródlądowy pasażerski","50.30.Z Transport wodny śródlądowy pasażerski"]
["50.40.Z"," Transport wodny śródlądowy towarów","50.40.Z Transport wodny śródlądowy towarów"]
["52.10.A"," Magazynowanie i przechowywanie paliw gazowych","52.10.A Magazynowanie i przechowywanie paliw gazowych"]
["52.10.В"," Magazynowanie i przechowywanie pozostałych towarów","52.10.В Magazynowanie i przechowywanie pozostałych towarów"]
["52.21.Z"," Działalność usługowa wspomagająca transport lądowy","52.21.Z Działalność usługowa wspomagająca transport lądowy"]
["52.29.C"," Działalność pozostałych agencji transportowych","52.29.C Działalność pozostałych agencji transportowych"]
["52.29.В"," Działalność śródlądowych agencji transportowych","52.29.В Działalność śródlądowych agencji transportowych"]
["53.20.Z"," Pozostała działalność pocztowa i kurierska","53.20.Z Pozostała działalność pocztowa i kurierska"]
["55.10.Z"," Hotele i podobne obiekty zakwaterowania","55.10.Z Hotele i podobne obiekty zakwaterowania"]
["55.20.Z"," Obiekty noclegowe turystyczne i miejsca krótkotrwałego zakwaterowania","55.20.Z Obiekty noclegowe turystyczne i miejsca krótkotrwałego zakwaterowania"]
["55.30.Z"," Pola kempingowe (włączając pola dla pojazdów kempingowych) i pola namiotowe","55.30.Z Pola kempingowe (włączając pola dla pojazdów kempingowych) i pola namiotowe"]
["55.90.Z"," Pozostałe zakwaterowanie","55.90.Z Pozostałe zakwaterowanie"]
["56.10.A"," Restauracje i inne stałe placówki gastronomiczne","56.10.A Restauracje i inne stałe placówki gastronomiczne"]
["56.10.В"," Ruchome placówki gastronomiczne","56.10.В Ruchome placówki gastronomiczne"]
["56.21.Z"," Przygotowywanie i dostarczanie żywności dla odbiorców zewnętrznych (katering)","56.21.Z Przygotowywanie i dostarczanie żywności dla odbiorców zewnętrznych (katering)"]
["56.29.Z"," Pozostała usługowa działalność gastronomiczna","56.29.Z Pozostała usługowa działalność gastronomiczna"]
["58.19.Z"," Pozostała działalność wydawnicza","58.19.Z Pozostała działalność wydawnicza"]
["58.29.Z"," Działalność wydawnicza w zakresie pozostałego oprogramowania","58.29.Z Działalność wydawnicza w zakresie pozostałego oprogramowania"]
["59.12.Z"," Działalność postprodukcyjna związana z filmami, nagraniami wideo i programami telewizyjnymi","59.12.Z Działalność postprodukcyjna związana z filmami, nagraniami wideo i programami telewizyjnymi"]
["62.01.Z"," Działalność związana z oprogramowaniem","62.01.Z Działalność związana z oprogramowaniem"]
["62.02.Z"," Działalność związana z doradztwem w zakresie informatyki","62.02.Z Działalność związana z doradztwem w zakresie informatyki"]
["62.03.Z"," Działalność związana z zarządzaniem urządzeniami informatycznymi","62.03.Z Działalność związana z zarządzaniem urządzeniami informatycznymi"]
["62.09.Z"," Pozostała działalność usługowa w zakresie technologii informatycznych i komputerowych","62.09.Z Pozostała działalność usługowa w zakresie technologii informatycznych i komputerowych"]
["63.11.Z"," Przetwarzanie danych; zarządzanie stronami internetowymi (hosting) i podobna działalność","63.11.Z Przetwarzanie danych; zarządzanie stronami internetowymi (hosting) i podobna działalność"]
["66.21.Z"," Działalność związana z oceną ryzyka i szacowaniem poniesionych strat","66.21.Z Działalność związana z oceną ryzyka i szacowaniem poniesionych strat"]
["66.22.Z"," Działalność agentów i brokerów ubezpieczeniowych","66.22.Z Działalność agentów i brokerów ubezpieczeniowych"]
["66.29.Z"," Pozostała działalność wspomagająca ubezpieczenia i fundusze emerytalne","66.29.Z Pozostała działalność wspomagająca ubezpieczenia i fundusze emerytalne"]
["68.31.Z"," Pośrednictwo w obrocie nieruchomościami","68.31.Z Pośrednictwo w obrocie nieruchomościami"]
["69.10.Z"," Działalność prawnicza","69.10.Z Działalność prawnicza"]
["69.20.Z"," Działalność rachunkowo-księgowa; doradztwo podatkowe","69.20.Z Działalność rachunkowo-księgowa; doradztwo podatkowe"]
["70.21.Z"," Stosunki międzyludzkie (public relations) i komunikacja","70.21.Z Stosunki międzyludzkie (public relations) i komunikacja"]
["70.22.Z"," Pozostałe doradztwo w zakresie prowadzenia działalności gospodarczej i zarządzania","70.22.Z Pozostałe doradztwo w zakresie prowadzenia działalności gospodarczej i zarządzania"]
["71.11.Z"," Działalność w zakresie architektury","71.11.Z Działalność w zakresie architektury"]
["71.12.Z"," Działalność w zakresie inżynierii i związane z nią doradztwo techniczne","71.12.Z Działalność w zakresie inżynierii i związane z nią doradztwo techniczne"]
["71.20.A"," Badania i analizy związane z jakością żywności","71.20.A Badania i analizy związane z jakością żywności"]
["71.20.В"," Pozostałe badania i analizy techniczne","71.20.В Pozostałe badania i analizy techniczne"]
["73.11.Z"," Działalność agencji reklamowych","73.11.Z Działalność agencji reklamowych"]
["73.12.A"," Pośrednictwo w sprzedaży czasu i miejsca na cele reklamowe w radio i telewizji","73.12.A Pośrednictwo w sprzedaży czasu i miejsca na cele reklamowe w radio i telewizji"]
["73.12.C"," Pośrednictwo w sprzedaży miejsca na cele reklamowe w mediach elektronicznych (Internet)",{"$f":"CONCATENATE(A322,B322)","v":"73.12.C Pośrednictwo w sprzedaży miejsca na cele reklamowe w mediach elektronicznych (Internet)"}]
["73.12.D"," Pośrednictwo w sprzedaży miejsca na cele reklamowe w pozostałych mediach","73.12.D Pośrednictwo w sprzedaży miejsca na cele reklamowe w pozostałych mediach"]
["73.12.В"," Pośrednictwo w sprzedaży miejsca na cele reklamowe w mediach drukowanych","73.12.В Pośrednictwo w sprzedaży miejsca na cele reklamowe w mediach drukowanych"]
["73.20.Z"," Badanie rynku i opinii publicznej","73.20.Z Badanie rynku i opinii publicznej"]
["74.20.Z"," Działalność fotograficzna","74.20.Z Działalność fotograficzna"]
["74.30.Z"," Działalność związana z tłumaczeniami","74.30.Z Działalność związana z tłumaczeniami"]
["74.90.Z"," Pozostała działalność profesjonalna, naukowa i techniczna, gdzie indziej niesklasyfikowana","74.90.Z Pozostała działalność profesjonalna, naukowa i techniczna, gdzie indziej niesklasyfikowana"]
["75.00.Z"," Działalność weterynaryjna","75.00.Z Działalność weterynaryjna"]
["77.21.Z"," Wypożyczanie i dzierżawa sprzętu rekreacyjnego i sportowego","77.21.Z Wypożyczanie i dzierżawa sprzętu rekreacyjnego i sportowego"]
["77.22.Z"," Wypożyczanie kaset wideo, płyt CD, DVD itp.","77.22.Z Wypożyczanie kaset wideo, płyt CD, DVD itp."]
["77.29.Z"," Wypożyczanie i dzierżawa pozostałych artykułów użytku osobistego i domowego","77.29.Z Wypożyczanie i dzierżawa pozostałych artykułów użytku osobistego i domowego"]
["77.32.Z"," Wynajem i dzierżawa maszyn i urządzeń budowlanych","77.32.Z Wynajem i dzierżawa maszyn i urządzeń budowlanych"]
["77.33.Z"," Wynajem i dzierżawa maszyn i urządzeń biurowych, włączając komputery","77.33.Z Wynajem i dzierżawa maszyn i urządzeń biurowych, włączając komputery"]
["77.34.Z"," Wynajem i dzierżawa środków transportu wodnego","77.34.Z Wynajem i dzierżawa środków transportu wodnego"]
["77.35.Z"," Wynajem i dzierżawa środków transportu lotniczego","77.35.Z Wynajem i dzierżawa środków transportu lotniczego"]
["77.39.Z"," Wynajem i dzierżawa pozostałych maszyn, urządzeń oraz dóbr materialnych, gdzie indziej niesklasyfikowane","77.39.Z Wynajem i dzierżawa pozostałych maszyn, urządzeń oraz dóbr materialnych, gdzie indziej niesklasyfikowane"]
["78.10.Z"," Działalność związana z wyszukiwaniem miejsc pracy i pozyskiwaniem pracowników","78.10.Z Działalność związana z wyszukiwaniem miejsc pracy i pozyskiwaniem pracowników"]
["78.20.Z"," Działalność agencji pracy tymczasowej","78.20.Z Działalność agencji pracy tymczasowej"]
["78.30.Z"," Pozostała działalność związana z udostępnianiem pracowników","78.30.Z Pozostała działalność związana z udostępnianiem pracowników"]
["79.11.A"," Działalność agentów turystycznych","79.11.A Działalność agentów turystycznych"]
["79.11.В"," Działalność pośredników turystycznych","79.11.В Działalność pośredników turystycznych"]
["79.12.Z"," Działalność organizatorów turystyki","79.12.Z Działalność organizatorów turystyki"]
["79.90.A"," Działalność pilotów wycieczek i przewodników turystycznych","79.90.A Działalność pilotów wycieczek i przewodników turystycznych"]
["79.90.C"," Pozostała działalność usługowa w zakresie rezerwacji, gdzie indziej niesklasyfikowana","79.90.C Pozostała działalność usługowa w zakresie rezerwacji, gdzie indziej niesklasyfikowana"]
["79.90.В"," Działalność w zakresie informacji turystycznej","79.90.В Działalność w zakresie informacji turystycznej"]
["80.10.Z"," Działalność ochroniarska, z wyłączeniem obsługi systemów bezpieczeństwa","80.10.Z Działalność ochroniarska, z wyłączeniem obsługi systemów bezpieczeństwa"]
["80.20.Z"," Działalność ochroniarska w zakresie obsługi systemów bezpieczeństwa","80.20.Z Działalność ochroniarska w zakresie obsługi systemów bezpieczeństwa"]
["80.30.Z"," Działalność detektywistyczna","80.30.Z Działalność detektywistyczna"]
["81.21.Z"," Niespecjalistyczne sprzątanie budynków i obiektów przemysłowych","81.21.Z Niespecjalistyczne sprzątanie budynków i obiektów przemysłowych"]
["81.22.Z"," Specjalistyczne sprzątanie budynków i obiektów przemysłowych","81.22.Z Specjalistyczne sprzątanie budynków i obiektów przemysłowych"]
["81.29.Z"," Pozostałe sprzątanie","81.29.Z Pozostałe sprzątanie"]
["81.30.Z"," Działalność usługowa związana z zagospodarowaniem terenów zieleni","81.30.Z Działalność usługowa związana z zagospodarowaniem terenów zieleni"]
["82.11.Z"," Działalność usługowa związana z administracyjną obsługą biura","82.11.Z Działalność usługowa związana z administracyjną obsługą biura"]
["82.19.Z"," Wykonywanie fotokopii, przygotowywanie dokumentów i pozostała specjalistyczna działalność wspomagająca prowadzenie biura","82.19.Z Wykonywanie fotokopii, przygotowywanie dokumentów i pozostała specjalistyczna działalność wspomagająca prowadzenie biura"]
["82.20.Z"," Działalność centrów telefonicznych (callcenter)","82.20.Z Działalność centrów telefonicznych (callcenter)"]
["82.30.Z"," Działalność związana z organizacją targów, wystaw i kongresów","82.30.Z Działalność związana z organizacją targów, wystaw i kongresów"]
["82.91.Z"," Działalność świadczona przez agencje inkasa i biura kredytowe","82.91.Z Działalność świadczona przez agencje inkasa i biura kredytowe"]
["82.92.Z"," Działalność związana z pakowaniem","82.92.Z Działalność związana z pakowaniem"]
["82.99.Z"," Pozostała działalność wspomagająca prowadzenie działalności gospodarczej, gdzie indziej niesklasyfikowana","82.99.Z Pozostała działalność wspomagająca prowadzenie działalności gospodarczej, gdzie indziej niesklasyfikowana"]
["85.10.Z"," Wychowanie przedszkolne","85.10.Z Wychowanie przedszkolne"]
["85.32.A"," Technika","85.32.A Technika"]
["85.32.В"," Zasadnicze szkoły zawodowe","85.32.В Zasadnicze szkoły zawodowe"]
["85.51.Z"," Pozaszkolne formy edukacji sportowej oraz zajęć sportowych i rekreacyjnych","85.51.Z Pozaszkolne formy edukacji sportowej oraz zajęć sportowych i rekreacyjnych"]
["85.52.Z"," Pozaszkolne formy edukacji artystycznej","85.52.Z Pozaszkolne formy edukacji artystycznej"]
["85.53.Z"," Pozaszkolne formy edukacji z zakresu nauki jazdy i pilotażu","85.53.Z Pozaszkolne formy edukacji z zakresu nauki jazdy i pilotażu"]
["85.59.A"," Nauka języków obcych","85.59.A Nauka języków obcych"]
["85.59.В"," Pozostałe pozaszkolne formy edukacji, gdzie indziej niesklasyfikowane","85.59.В Pozostałe pozaszkolne formy edukacji, gdzie indziej niesklasyfikowane"]
["86.21.Z"," Praktyka lekarska ogólna","86.21.Z Praktyka lekarska ogólna"]
["86.22.Z"," Praktyka lekarska specjalistyczna","86.22.Z Praktyka lekarska specjalistyczna"]
["86.23.Z"," Praktyka lekarska dentystyczna","86.23.Z Praktyka lekarska dentystyczna"]
["86.90.A"," Działalność fizjoterapeutyczna","86.90.A Działalność fizjoterapeutyczna"]
["86.90.C"," Praktyka pielęgniarek i położnych","86.90.C Praktyka pielęgniarek i położnych"]
["86.90.D"," Działalność paramedyczna","86.90.D Działalność paramedyczna"]
["86.90.В"," Działalność pogotowia ratunkowego","86.90.В Działalność pogotowia ratunkowego"]
["87.10.Z"," Pomoc społeczna z zakwaterowaniem zapewniająca opiekę pielęgniarską","87.10.Z Pomoc społeczna z zakwaterowaniem zapewniająca opiekę pielęgniarską"]
["87.20.Z"," Pomoc społeczna z zakwaterowaniem dla osób z zaburzeniami psychicznymi","87.20.Z Pomoc społeczna z zakwaterowaniem dla osób z zaburzeniami psychicznymi"]
["87.30.Z"," Pomoc społeczna z zakwaterowaniem dla osób w podeszłym wieku i osób niepełnosprawnych","87.30.Z Pomoc społeczna z zakwaterowaniem dla osób w podeszłym wieku i osób niepełnosprawnych"]
["87.90.Z"," Pozostała pomoc społeczna z zakwaterowaniem","87.90.Z Pozostała pomoc społeczna z zakwaterowaniem"]
["88.10.Z"," Pomoc społeczna bez zakwaterowania dla osób w podeszłym wieku i osób niepełnosprawnych","88.10.Z Pomoc społeczna bez zakwaterowania dla osób w podeszłym wieku i osób niepełnosprawnych"]
["88.91.Z"," Opieka dzienna nad dziećmi","88.91.Z Opieka dzienna nad dziećmi"]
["88.99.Z"," Pozostała pomoc społeczna bez zakwaterowania, gdzie indziej niesklasyfikowana","88.99.Z Pozostała pomoc społeczna bez zakwaterowania, gdzie indziej niesklasyfikowana"]
["90.01.Z"," Działalność związana z wystawianiem przedstawień artystycznych","90.01.Z Działalność związana z wystawianiem przedstawień artystycznych"]
["90.02.Z"," Działalność wspomagająca wystawianie przedstawień artystycznych","90.02.Z Działalność wspomagająca wystawianie przedstawień artystycznych"]
["90.03.Z"," Artystyczna i literacka działalność twórcza","90.03.Z Artystyczna i literacka działalność twórcza"]
["90.04.Z"," Działalność obiektów kulturalnych",{"$f":"CONCATENATE(A386,B386)","v":"90.04.Z Działalność obiektów kulturalnych"}]
["91.01.A"," Działalność bibliotek","91.01.A Działalność bibliotek"]
["93.11.Z"," Działalność obiektów sportowych","93.11.Z Działalność obiektów sportowych"]
["93.12.Z"," Działalność klubów sportowych","93.12.Z Działalność klubów sportowych"]
["93.13.Z"," Działalność obiektów służących poprawie kondycji fizycznej","93.13.Z Działalność obiektów służących poprawie kondycji fizycznej"]
["93.19.Z"," Pozostała działalność związana ze sportem","93.19.Z Pozostała działalność związana ze sportem"]
["93.21.Z"," Działalność wesołych miasteczek i parków rozrywki","93.21.Z Działalność wesołych miasteczek i parków rozrywki"]
["93.29.Z"," Pozostała działalność rozrywkowa i rekreacyjna","93.29.Z Pozostała działalność rozrywkowa i rekreacyjna"]
["95.11.Z"," Naprawa i konserwacja komputerów i urządzeń peryferyjnych","95.11.Z Naprawa i konserwacja komputerów i urządzeń peryferyjnych"]
["95.12.Z"," Naprawa i konserwacja sprzętu (tele)komunikacyjnego","95.12.Z Naprawa i konserwacja sprzętu (tele)komunikacyjnego"]
["95.21.Z"," Naprawa i konserwacja elektronicznego sprzętu powszechnego użytku","95.21.Z Naprawa i konserwacja elektronicznego sprzętu powszechnego użytku"]
["95.22.Z"," Naprawa i konserwacja urządzeń gospodarstwa domowego oraz sprzętu użytku domowego i ogrodniczego","95.22.Z Naprawa i konserwacja urządzeń gospodarstwa domowego oraz sprzętu użytku domowego i ogrodniczego"]
["95.23.Z"," Naprawa obuwia i wyrobów skórzanych","95.23.Z Naprawa obuwia i wyrobów skórzanych"]
["95.24.Z"," Naprawa i konserwacja mebli i wyposażenia domowego","95.24.Z Naprawa i konserwacja mebli i wyposażenia domowego"]
["95.25.Z"," Naprawa zegarów, zegarków oraz biżuterii","95.25.Z Naprawa zegarów, zegarków oraz biżuterii"]
["95.29.Z"," Naprawa pozostałych artykułów użytku osobistego i domowego","95.29.Z Naprawa pozostałych artykułów użytku osobistego i domowego"]
["96.01.Z"," Pranie i czyszczenie wyrobów włókienniczych i futrzarskich","96.01.Z Pranie i czyszczenie wyrobów włókienniczych i futrzarskich"]
["96.02.Z"," Fryzjerstwo i pozostałe zabiegi kosmetyczne","96.02.Z Fryzjerstwo i pozostałe zabiegi kosmetyczne"]
["96.03.Z"," Pogrzeby i działalność pokrewna","96.03.Z Pogrzeby i działalność pokrewna"]
["96.04.Z"," Działalność usługowa związana z poprawą kondycji fizycznej","96.04.Z Działalność usługowa związana z poprawą kondycji fizycznej"]
["96.09.Z"," Pozostała działalność usługowa, gdzie indziej niesklasyfikowana","96.09.Z Pozostała działalność usługowa, gdzie indziej niesklasyfikowana"]

{"sheet":"V.Finans.","index":4,"n_rows":69,"n_cols":35,"rows_kept":69,"cut":false,"hidden":false,"merged":[[60,3,60,12],[54,22,55,37],[48,3,48,25],[53,30,53,37],[53,3,53,29],[49,3,49,25],[47,32,47,37],[22,13,22,17],[17,10,17,12],[20,13,20,17],[18,3,18,37],[17,34,17,37],[20,23,20,28],[20,34,20,37],[67,4,67,36],[68,5,69,31],[68,32,68,37],[68,3,69,4],[48,26,48,31],[47,26,47,31],[49,26,49,31],[56,22,58,37],[59,22,61,37],[47,3,47,25],[62,3,62,21],[54,13,55,21],[54,3,55,12],[48,32,48,37],[57,3,57,12],[62,22,62,37],[49,32,49,37],[5,39,7,40],[6,32,6,37],[12,32,12,37],[28,5,29,26],[29,32,29,37],[24,18,24,22],[24,29,24,33],[21,34,21,37],[24,23,24,28],[16,10,16,37],[17,13,17,17],[19,3,19,9],[23,3,23,37],[19,23,19,28],[17,18,17,22],[17,3,17,9],[17,23,17,28],[21,23,21,28],[14,3,14,4],[5,38,6,38],[19,10,19,12],[19,18,19,22],[12,3,13,4],[22,23,22,28],[0,1,0,13],[0,14,0,37],[12,5,13,31],[20,18,20,22],[2,3,2,37],[20,29,20,33],[17,29,17,33],[19,13,19,17],[21,29,21,33],[19,34,19,37],[19,29,19,33],[20,3,20,9],[21,13,21,17],[21,18,21,22],[2,1,4,1],[11,4,11,37],[14,5,14,37],[4,2,4,38],[6,3,6,31],[21,3,21,9],[15,2,15,38],[16,3,16,9],[20,10,20,12],[21,10,21,12],[46,4,46,25],[26,3,26,4],[24,13,24,17],[22,18,22,22],[25,3,25,4],[25,5,25,33],[22,34,22,37],[45,32,45,37],[43,26,43,31],[42,32,42,37],[38,26,40,31],[33,32,33,37],[35,2,35,38],[38,3,40,25],[41,4,41,25],[42,4,42,5],[42,6,42,25],[43,6,43,25],[44,4,44,25],[45,4,45,25],[22,29,22,33],[24,34,24,37],[22,10,22,12],[22,3,22,9],[42,40,46,40],[28,27,28,31],[29,27,29,31],[24,3,24,9],[24,10,24,12],[36,3,36,25],[33,4,33,22],[34,3,34,37],[26,34,26,37],[28,32,28,37],[26,5,26,33],[41,26,41,37],[38,32,40,37],[42,26,42,31],[45,26,45,31],[44,26,44,31],[43,32,43,37],[44,32,44,37],[43,4,43,5],[28,3,29,4],[25,34,25,37],[33,29,33,31],[46,32,46,37],[46,26,46,31]]}
[null,"Podmiot ubiegający się o przyznanie pomocy:",null,null,null,null,null,null,null,null,null,null,null,null,{"$f":"IF(I.Cel_II.Ident.!T30=\"\",I.Cel_II.Ident.!B30,I.Cel_II.Ident.!T30&\" \"&I.Cel_II.Ident.!B30)","v":0}]
[]
[null,null,null,"V. FINANSOWANIE OPERACJI"]
[]
[]
[]
[null,null,null,"1. Kwota premii (w zł)",null,null,null,null,null,null,null,null,null,null,null,null,null,null,null,null,null,null,null,null,null,null,null,null,null,null,null,null,"(wybierz z listy)"]
[]
[]
[]
[]
[null,null,null,"2.","Przysługująca pomoc de minimis:                                                                                                            "]
[null,null,null,"2.1.",null,"Obowiązujący podmiot ubiegający się o przyznanie pomocy limit pomocy de minimis  (w EUR)",null,null,null,null,null,null,null,null,null,null,null,null,null,null,null,null,null,null,null,null,null,null,null,null,null,null,"(wybierz z listy)"]
[]
[null,null,null,"2.2.",null,"Wielkość uzyskanej pomocy de minimis \n(w bieżącym roku podatkowym oraz w dwóch poprzedzających go latach podatkowych)"]
[]
[null,null,null,"2.2.1. Oświadczam, iż",null,null,null,null,null,null,"(wybierz z listy)"]
[null,null,null,"Organ udzielający pomocy",null,null,null,null,null,null,"Dzień udzielenia pomocy",null,null,"Podstawa prawna otrzymanej pomocy",null,null,null,null,"Nr rozporządzenia unijnego",null,null,null,null,"Nr decyzji lub umowy",null,null,null,null,null,"Forma pomocy",null,null,null,null,"Wielkości pomocy brutto \n(w EUR)"]
[null,null,null,"pomoc de minimis w rolnictwie, rybołówstwie i pozostała"]
[null,null,null,null,null,null,null,null,null,null,null,null,null,null,null,null,null,null,"(wybierz z listy)",null,null,null,null,null,null,null,null,null,null,"(wybierz z listy)",null,null,null,null,0]
[null,null,null,null,null,null,null,null,null,null,null,null,null,null,null,null,null,null,"(wybierz z listy)",null,null,null,null,null,null,null,null,null,null,"(wybierz z listy)",null,null,null,null,0]
[null,null,{"$f":"ROW(C1)","v":1},null,null,null,null,null,null,null,null,null,null,null,null,null,null,null,"(wybierz z listy)",null,null,null,null,null,null,null,null,null,null,"(wybierz z listy)",null,null,null,null,0]
[null,null,null,null,null,null,null,null,null,null,null,null,null,null,null,null,null,null,"(wybierz z listy)",null,null,null,null,null,null,null,null,null,null,"(wybierz z listy)",null,null,null,null,0]
[null,null,null,"pomoc de minimis uzyskana na mocy rozporządzenia 360/2012"]
[null,null,null,null,null,null,null,null,null,null,null,null,null," ",null,null,null,null,"360/2012",null,null,null,null," ",null,null,null,null,null,"(wybierz z listy)",null,null,null,null,0]
[null,null,null,"2.2.2.",null,"Łączna wartość pomocy de minimis uzyskanej przez podmioty powiązane\n(zgodnie z danymi wskazanymi w pkt 9) Formularza informacji przedstawionych przy ubieganiu o pomoc de minimis)",null,null,null,null,null,null,null,null,null,null,null,null,null,null,null,null,null,null,null,null,null,null,null,null,null,null,null,null,0]
[null,null,null,"2.2.3.",null,"Suma uzyskanej pomocy de minimis",null,null,null,null,null,null,null,null,null,null,null,null,null,null,null,null,null,null,null,null,null,null,null,null,null,null,null,null,{"$f":"SUM(AI20:AL24,AI25:AL26)","v":0}]
[]
[null,null,null,"2.3.",null,"Pozostały do wykorzystania limit pomocy de minimis ",null,null,null,null,null,null,null,null,null,null,null,null,null,null,null,null,null,null,null,null,null,"w EUR",null,null,null,null,{"$f":"IFERROR(IF(IF(500000-AI27>AG13-SUM(AI20:AL20,AI26:AL26),AG13-SUM(AI20:AL20,AI26:AL26),500000-AI27)>0,IF(500000-AI27>AG13-SUM(AI20:AL20,AI26:AL26),AG13-SUM(AI20:AL20,AI26:AL26),500000-AI27),0),0)","v":0}]
[null,null,null,null,null,null,null,null,null,null,null,null,null,null,null,null,null,null,null,null,null,null,null,null,null,null,null,"w PLN",null,null,null,null,{"$f":"AG29*Listy!A125","v":0}]
[]
[]
[]
[null,null,null,"3.","Kwota do wykorzystania",null,null,null,null,null,null,null,null,null,null,null,null,null,null,null,null,null,null,null,null,null,null,null,null,"w PLN",null,null,{"$f":"IF(AG7<=AG30,AG7,0)","v":0}]
[]
[]
[null,null,null,"4.   Planowane koszty realizacji operacji"]
[]
[null,null,null,"Rodzaje kosztów",null,null,null,null,null,null,null,null,null,null,null,null,null,null,null,null,null,null,null,null,null,null,"Całkowity koszt operacji (w zł)",null,null,null,null,null,"Koszty operacji \n(w zł)"]
[]
[]
[null,null,null,"4.1","Szacunkowe koszty związane z inwestycjami w środki trwałe:"]
[null,null,null,null,"4.1.1. ",null,"Inwestycje związane z zakupem nowych maszyn, urządzeń, środków transportu oraz wyposażenia "]
[null,null,null,null,"4.1.2.",null,"Inwestycje związane z budową, przebudową, remontem połączonym z modernizacją  lub zagospodarowaniem nieruchomości "]
[null,null,null,"4.2","Szacunkowe koszty udziału w szkoleniach"]
[null,null,null,"4.3","Szacunkowe koszty korzystania z usług doradczych"]
[null,null,null,"4.4","Inne koszty "]
[null,null,null,"4.5. Suma pkt. 4.1. - 4. 4.:",null,null,null,null,null,null,null,null,null,null,null,null,null,null,null,null,null,null,null,null,null,null,{"$f":"SUM(AA43:AF47)","v":0},null,null,null,null,null,{"$f":"SUM(AG43:AL47)","v":0}]
[null,null,null,"4.6. Suma szacunkowych kosztów związanych z inwestycjami w środki trwałe pkt. 4.1.1. - 4.1.2.:",null,null,null,null,null,null,null,null,null,null,null,null,null,null,null,null,null,null,null,null,null,null,{"$f":"SUM(AA43,AA44)","v":0},null,null,null,null,null,{"$f":"SUM(AG43,AG44)","v":0}]
[null,null,null,"4.7. Udział szacunkowych kosztów związanych z inwestycjami w środki trwałe w kwocie pomocy:",null,null,null,null,null,null,null,null,null,null,null,null,null,null,null,null,null,null,null,null,null,null,null,null,null,null,null,null,{"$f":"IFERROR(IF(AG49/$AG$7<=1,AG49/$AG$7,1),0)","v":0}]
[]
[]
[]
[null,null,null,"5. Podział na etapy planowanej do realizacji operacji"]
[null,null,null,"Etapy",null,null,null,null,null,null,null,null,null,"Planowany termin złożenia (miesiąc/rok)",null,null,null,null,null,null,null,null,"Kwota płatności "]
[]
[null,null,null,null,null,null,null,null,null,null,null,null,null,null,null,null,null,null,null,null,null,null,{"$f":"IF($AG$7=\"(wybierz z listy)\",\"\",$AG$7*80%)","v":""}]
[null,null,null,"5.1.   I wniosek o płatność ",null,null,null,null,null,null,null,null,null,null,null,null,"-"]
[]
[null,null,null,null,null,null,null,null,null,null,null,null,null,null,null,null,null,null,null,null,null,null,{"$f":"IF($AG$7=\"(wybierz z listy)\",\"\",$AG$7*20%)","v":""}]
[null,null,null,"5.2.   II wniosek o płatność",null,null,null,null,null,null,null,null,null,null,null,null,"-"]
[]
[null,null,null,"5.3. Suma pkt. 5.1. - 5.2:",null,null,null,null,null,null,null,null,null,null,null,null,null,null,null,null,null,null,{"$f":"SUM(W57:AD62)","v":0}]
[]
[]
[]
[]
[null,null,null,"6.","Wartość dodana brutto"]
[null,null,null,"6.1.",null,"Planowana wartość dodana brutto (w zł)",null,null,null,null,null,null,null,null,null,null,null,null,null,null,null,null,null,null,null,null,null,null,null,null,null,null,0]

{"sheet":"Listy","index":5,"n_rows":231,"n_cols":2,"rows_kept":231,"cut":false,"hidden":true,"merged":[]}
["(wybierz z listy)","(wybierz z listy)"]
["złożenie wniosku o przyznanie pomocy ",150000]
["zmiana złożonego wniosku o przyznanie pomocy",200000]
["korekta złożonego wniosku o przyznanie pomocy",250000]
["wycofanie złożonego wniosku o przyznanie pomocy"]
["złożenie wniosku następcy prawnego o przyznanie pomocy"]
["zmiana złożonego wniosku następcy prawnego o przyznanie pomocy"]
["korekta złożonego wniosku następcy prawnego o przyznanie pomocy"]
["wycofanie złożonego wniosku następcy prawnego o przyznanie pomocy"]
[]
["(wybierz z listy)"]
["ROLNIK"]
["MAŁŻONEK ROLNIKA"]
["DOMOWNIK ROLNIKA"]
["MAŁŻONEK BENEFICJENTA poddziałania \"Płatności na rzecz rolników kwalifikujących się do systemu dla małych gospodarstw, którzy trwale przekazali swoje gospodarstwo innemu rolnikowi\" "]
["BENEFICJENT poddziałania \"Płatności na rzecz rolników kwalifikujących się do systemu dla małych gospodarstw, którzy trwale przekazali swoje gospodarstwo innemu rolnikowi\" "]
[]
[]
["(wybierz z listy)","http://stat.gov.pl/sprawozdawczosc/intrastat/wykaz-panstw-czlonkowskich-unii-europejskiej/"]
["AT - Austria","austriackie"]
["BE - Belgia","belgijskie"]
["GB - Wielka Brytania","brytyjskie"]
["BG - Bułgaria","bułgarskie"]
["HR - Chorwacja","chorwackie"]
["CY - Cypr","cypryjskie"]
["CZ - Czechy","czeskie"]
["DK - Dania","duńskie"]
["EE - Estonia","estońskie"]
["FI - Finlandia ","fińskie"]
["FR - Francja","francuskie"]
["GR - Grecja","greckie"]
["ES - Hiszpania","hiszpańskie"]
["NL - Holandia","holenderskie"]
["IE - Irlandia","irlandzkie"]
["LT - Litwa","litewskie"]
["LU - Luksmeburg","luksemburskie"]
["LV - Łotwa","łotewskie"]
["MT - Malta","maltańskie"]
["DE - Niemcy","niemieckie"]
["PL - Polska ","polskie"]
["PT - Portugalia","portugalskie"]
["RO - Rumunia","rumuńskie"]
["SK - Słowacja","słowackie"]
["SI - Słowenia","słoweńskie"]
["SE - Szwecja ","szwedzkie"]
["HU - Węgry","węgierskie"]
["IT - Włochy","włoskie"]
[]
["(wybierz z listy)"]
["KOBIETA "]
["MĘŻCZYZNA "]
[]
["(wybierz z listy)"]
["DOLNOŚLĄSKIE"]
["KUJAWSKO-POMORSKIE"]
["LUBELSKIE"]
["LUBUSKIE"]
["ŁÓDZKIE"]
["OPOLSKIE "]
["PODLASKIE"]
["PODKARPACKIE"]
["POMORSKIE"]
["MAŁOPOLSKIE"]
["MAZOWIECKIE"]
["ŚLĄSKIE"]
["ŚWIĘTOKRZYSKIE"]
["WARMIŃSKO-MAZURSKIE"]
["WIELKOPOLSKIE"]
["ZACHODNIOPOMORSKIE"]
[]
["(wybierz z listy)"]
["TAK"]
["NIE"]
[]
["(wybierz z listy)"]
["liczba nowych usług"]
["liczba technologii, z wykorzystaniem nowych maszyn i urządzeń"]
[]
["(wybierz z listy)"]
["liczba zmienionych technologii"]
["liczba sprzętu"]
["liczba maszyn i urządzeń"]
[]
[]
["(wybierz z listy)"]
["01.61.Z Działalność usługowa wspomagająca produkcję roślinną "]
["01.62.Z Działalność usługowa wspomagająca chów i hodowlę zwierząt gospodarskich "]
["01.63.Z Działalność usługowa następująca po zbiorach"]
[]
["(wybierz z listy)"]
["mikroprzedsiębiorstwem"]
["małym przedsiębiorstwem"]
[]
["TAK"]
[]
[]
["X"]
[]
["(wybierz z listy)"]
["1407/2013"]
["1408/2013"]
["717/2014"]
[]
["(wybierz z listy)"]
["dotacja"]
["pożyczka"]
["kredyt"]
["gwarancja"]
["poręczenie"]
["ulga podatkowa"]
["zwolnienie podatkowe"]
["zaniechanie poboru podatku"]
["odroczenie płatności podatku"]
["rozłożenie na raty podatku"]
["umorzenie zal. podatkowej"]
["inne"]
[]
["(wybierz z listy)"]
[15000]
[30000]
[100000]
[200000]
[]
["średni kurs ogłoszony przez NBP na dzień udzielenia pomocy"]
[4.2773000000000003,"2019-07-29"]
[]
["(wybierz z listy)"]
["NIE"]
["ONW z ograniczeniami naturalnymi strefa I"]
["ONW z ograniczeniami naturalnymi strefa II"]
["ONW typ specyficzny strefa I (niekorzystne warunki o walorach przyrodniczo-turystycznych)"]
["ONW typ specyficzny strefa II"]
["ONW typ górski"]
["ONW płatność przejściowa"]
[]
[]
["(wybierz z listy)"]
["Austria"]
["Belgia"]
["Wielka Brytania"]
["Bułgaria"]
["Chorwacja"]
["Cypr"]
["Czechy"]
["Dania"]
["Estonia"]
["Finlandia "]
["Francja"]
["Grecja"]
["Hiszpania"]
["Holandia"]
["Irlandia"]
["Litwa"]
["Luksmeburg"]
["Łotwa"]
["Malta"]
["Niemcy"]
["Polska "]
["Portugalia"]
["Rumunia"]
["Słowacja"]
["Słowenia"]
["Szwecja "]
["Węgry"]
["Włochy"]
[]
["(wybierz z listy)"]
[500000]
[250000]
[]
[]
["(wybierz z listy)"]
["nie uzyskałem/am pomocy publicznej przyznawanej zgodnie z zasadą de minimis"]
["uzyskałem/am poniższą pomoc publiczną przyznawaną zgodnie z zasadą de minimis"]
[]
["(wybierz z listy)"]
["TAK"]
["NIE"]
["NIE DOTYCZY"]
[]
["(wybierz z listy)"]
["OSOBA FIZYCZNA "]
["OSOBA PRAWNA"]
["JEDNOSTKA ORGANIZACYJNA NIEPOSIADAJĄCA OSOBOWOŚCI PRAWNEJ "]
[]
[]
[]
["(wybierz z listy)"]
["kody PKD"]
[]
[]
[]
["(wybierz z listy)"]
["uprawy polowe"]
["uprawy ogrodnicze"]
["winnice"]
["uprawy trwałe"]
["krowy mleczne"]
["zwierzęta trawożerne"]
["zwierzęta ziarnożerne-trzoda chlewna"]
["drób oraz pozostałe ziarnożerne"]
["mieszane"]
["inne"]
[]
[]
["(wybierz z listy)"]
[1]
["więcej niż 1 ale mniej niż 2"]
["co najmniej 2 ale mniej niż 3"]
["co najmniej 3"]
[]
["(wybierz z listy)"]
["jestem w związku małżeńskim "]
["nie jestem w związku małżeńskim "]
[]
["(wybierz z listy obszar wsparcia) "]
["OPERACJA ZWIĄZANA Z PODEJMOWANIEM POZAROLNICZEJ DZIAŁALNOŚCI GOSPODARCZEJ ORAZ ZAPRZESTANIEM CHOWU I HODOWLI ŚWIŃ NA OBSZARACH WIEJSKICH OBJĘTYCH ASF"]
["OPERACJA ZWIĄZANA Z PODEJMOWANIEM POZAROLNICZEJ DZIAŁALNOŚCI GOSPODARCZEJ "]
[]
[]
[]
[0]
[1]
[2]
[3]
[4]
[5]
[6]
[7]
[8]
[9]

{"sheet":"VI.Inf.zał.","index":6,"n_rows":56,"n_cols":35,"rows_kept":56,"cut":false,"hidden":false,"merged":[[50,33,52,35],[54,1,54,35],[55,1,55,36],[47,1,49,2],[47,3,49,26],[47,27,49,29],[50,1,52,2],[50,3,52,26],[50,27,52,29],[40,1,42,2],[40,3,42,26],[40,27,42,29],[43,1,43,35],[43,37,45,40],[44,1,46,2],[44,3,46,26],[44,27,46,29],[33,1,36,2],[33,3,36,26],[33,27,36,29],[33,37,36,40],[37,1,39,2],[37,3,39,26],[37,27,39,29],[37,37,39,40],[33,30,33,32],[27,1,29,2],[27,3,29,26],[27,27,29,29],[30,1,32,2],[30,3,32,26],[30,27,32,29],[18,37,20,40],[21,1,23,2],[21,3,23,26],[21,27,23,29],[24,1,26,2],[24,3,26,26],[24,27,26,29],[18,1,20,2],[18,3,20,26],[18,27,20,29],[12,1,14,2],[12,3,14,26],[12,27,14,29],[15,1,17,2],[15,3,17,26],[6,1,8,2],[6,3,8,26],[6,27,8,29],[6,37,8,40],[9,1,11,2],[9,3,11,26],[9,27,11,29],[0,0,0,12],[0,13,0,36],[2,1,2,35],[3,1,5,2],[3,3,5,26],[3,27,5,29],[3,30,5,32],[3,33,5,35]]}
["Podmiot ubiegający się o przyznanie pomocy:",null,null,null,null,null,null,null,null,null,null,null,null,{"$f":"IF(I.Cel_II.Ident.!T30=\"\",I.Cel_II.Ident.!B30,I.Cel_II.Ident.!T30&\" \"&I.Cel_II.Ident.!B30)","v":0}]
[]
[null,"VI. INFOMACJA O ZAŁĄCZNIKACH"]
[null,"Lp.",null,"Nazwa załącznika",null,null,null,null,null,null,null,null,null,null,null,null,null,null,null,null,null,null,null,null,null,null,null,"Liczba załączników",null,null,"Tak",null,null,"ND"]
[]
[]
[null,"1.",null,"Wniosek o wpis do ewidencji producentów, o której mowa w przepisach o krajowym systemie ewidencji producentów, ewidencji gospodarstw rolnych oraz ewidencji wniosków o przyznanie płatności, jeżeli podmiotowi ubiegającemu się o przyznanie pomocy, małżonkowi albo współposiadaczowi gospodarstwa nie został nadany numer identyfikacyjny - kopia, \na w przypadku składania wniosku o wpis tego podmiotu do tej ewidencji łącznie z wnioskiem o przyznanie pomocy – oryginał wniosku"]
[]
[]
[null,"2.",null,"Biznesplan na infomatycznym nośniku danych (CD lub DVD) - sporządzony na formularzu opracowanym i udostępnionym przez ARiMR, stanowiącym Załącznik nr 1 do Wniosku o przyznanie pomocy, oraz wydruk podsumowania biznesplanu"]
[null,null,null,null,null,null,null,null,null,null,null,null,null,null,null,null,null,null,null,null,null,null,null,null,null,null,null,null,null,null,null,null,null,null," "]
[]
[null,"3.",null,"Zaświadczenie o okresie podlegania ubezpieczeniu społecznemu z tytułu prowadzenia działalności rolniczej w innym państwie członkowskim Unii Europejskiej lub państwie członkowskim Europejskiego Porozumienia o Wolnym Handlu (EFTA) oraz o zakresie tego ubezpieczenia wydane nie wcześniej niż dwa miesiące przed dniem złożenia wniosku o przyznanie pomocy - dotyczy rolnika, małżonka rolnika lub domownika - oryginał"]
[]
[]
[null,"4.",null,"Oświadczenie podmiotu ubiegającego się o przyznanie pomocy o wielkości przedsiębiorstwa, potwierdzające, że prowadzi mikro lub małe przedsiębiorstwo - sporządzone na formularzu opracowanym i udostępnionym przez ARiMR - oryginał"]
[]
[]
[null,"5.",null,"Formularz informacji przedstawianych przy ubieganiu się o pomoc de minimis zawierający informacje, o których mowa w rozporządzeniu Rady Ministrów z dnia 29 marca 2010 r. w sprawie zakresu informacji przedstawianych przez podmiot ubiegający się o pomoc de minimis (Dz. U. Nr 53, poz. 311, z 2013 r. poz. 276 oraz z 2014 r. poz. 1543) - oryginał"]
[]
[]
[null,"6.",null,"Wszystkie zaświadczenia o pomocy de minimis oraz pomocy de minimis w rolnictwie lub rybołówstwie, jakie podmiot ubiegający się o przyznanie pomocy otrzymał w roku, w którym ubiega się o pomoc oraz w okresie poprzedzających go 2 lat - w przypadku gdy podmiot ubiegający się o przyznanie pomocy nie wypełnił oświadczenia  o wielkości pomocy de minimis zawartego w sekcji  V.2.2 Wniosku o przyznanie pomocy -  kopie                                                                                          "]
[]
[]
[null,"7.",null,"Dokumenty potwierdzające posiadanie kwalifikacji z zakresu podejmowanej działalności pozarolniczej - dotyczy podmiotu ubiegającego się o przyznanie pomocy, który takie kawalifikacje posiada, z wyłączeniem podmiotu realizującego operację związaną z  rozpoczynaniem pozarolniczej działalności gospodarczej oraz zaprzestaniem chowu i hodowli świń na obszarach wiejskich objętych ASF -kopia"]
[]
[]
[null,"8.",null,"Dokument potwierdzający tytuł prawny do nieruchomości, na której będzie realizowana operacja, tj. umowa dzierżawy, najmu lub użyczenia nieruchomości na podstawie której podmiot ubiegający się o przyznanie pomocy  posiada tę nieruchomość, na której będzie realizowana operacja, zawarta na okres co najmniej 6 lat od dnia złożenia wniosku o przyznanie pomocy - kopia \nprzy czym w przypadku posiadania samoistnego nieruchomości, dla której księga wieczysta jest prowadzona w systemie teleinformatycznym, o którym mowa w art. 25¹ ustawy z dnia 6 lipca 1982 r. o księgach wieczystych i hipotece (Dz. U. z 2018 r. poz. 1916 i 2354 oraz z 2019 r. poz. 730 i 1309), wystarczające  jest podanie numeru księgi wieczystej w kol. 10 w sekcji III.2.5 Wniosku o przyznaniu pomocy "]
[]
[]
[null,"9.",null,"Oświadczenie właściciela albo współwłaściciela nieruchomości o wyrażeniu zgody na realizację operacji związanej z budową, przebudową lub remontem połączonym z modernizacją, w przypadku gdy operacja będzie realizowana na nieruchomości niestanowiącej własności podmiotu ubiegającego się o przyznanie pomocy albo stanowiącej współwłasność tego podmiotu  - na formularzu opracowanym i udostępnionym przez ARiMR stanowiącym Załącznik nr 2 do Wniosku o przyznanie pomocy  - oryginał"]
[]
[]
[null,"10.",null,"Oświadczenie właściciela albo współwłaściciela gospodarstwa o wyrażeniu zgody na realizację operacji oraz o zaprzestaniu i nie podejmowaniu  chowu lub hodowli świń w gospodarstwie - na formularzu opracowanym i udostępnionym przez ARiMR stanowiącym Załącznik nr 3 do Wniosku o przyznanie pomocy - oryginał"]
[]
[]
[]
[null,"11.",null,"Kosztorys inwestorski - w przypadku, gdy biznesplan przewiduje realizację inwestycji budowlanej"]
[]
[]
[null,"12.",null,"Oryginał lub urzędowo poświadczony odpis pełnomocnictwa/upoważnienia udzielonego przez podmiot ubiegający się o przyznanie pomocy do występowania w jego imieniu - jeżeli zostało udzielone                      \n                       \n                       \n"]
[]
[]
[null,"Dodatkowe załączniki wymagane do przeprowadzenia weryfikacji wniosku następcy prawnego "]
[null,"13.",null,"Uzasadnienie wniosku następcy prawnego o przyznanie pomocy - oryginał"]
[]
[]
[null,"14.",null,"Dokument potwierdzający fakt zaistnienia następstwa prawnego -  kopia ",null,null,null,null,null,null,null,null,null,null,null,null,null,null,null,null,null,null,null,null,null,null,null," "]
[]
[]
[null,"15.",null,"Oświadczenie następcy prawnego Beneficjenta o jego wstąpieniu w prawa i obowiązki Beneficjenta wynikające z decyzji o przyznaniu pomocy, sporządzone na formularzu udostępnionym przez ARiMR, stanowiącym Załącznik nr 4 do Wniosku o przyznanie pomocy - oryginał",null,null,null,null,null,null,null,null,null,null,null,null,null,null,null,null,null,null,null,null,null,null,null," "]
[]
[]
[]
[null,"UWAGA: "]
[null,"Kopie dokumentów załącza się w formie kopii potwierdzonych za zgodność z oryginałem przez pracownika ARiMR lub podmiot, który wydał dokument, lub poświadczonych za zgodność z oryginałem przez notariusza lub przez występującego w sprawie pełnomocnika będącego radcą prawnym albo adwokatem. "]

{"sheet":"VII-X. Ośw.Wniosk.","index":7,"n_rows":79,"n_cols":23,"rows_kept":79,"cut":false,"hidden":false,"merged":[[28,37,28,38],[30,2,30,35],[32,2,32,15],[32,22,32,35],[53,2,53,15],[42,2,42,35],[39,1,39,35],[29,2,29,35],[49,2,49,35],[44,2,44,35],[37,3,37,35],[48,2,48,35],[31,2,31,15],[0,0,0,12],[0,13,0,36],[43,2,43,35],[4,1,4,32],[3,1,3,2],[7,2,7,35],[8,2,8,35],[9,2,9,35],[38,1,38,32],[41,2,41,35],[3,3,3,35],[28,2,28,35],[40,2,40,35],[5,2,5,35],[6,2,6,35],[15,2,15,35],[11,2,11,35],[10,2,10,35],[53,22,53,35],[12,2,12,35],[13,2,13,35],[50,2,50,35],[51,2,51,35],[14,2,14,35],[16,3,18,35],[33,2,33,35],[37,1,37,2],[20,3,22,35],[45,2,45,35],[46,2,46,35],[47,2,47,35],[24,3,26,35],[70,22,70,35],[70,2,70,15],[63,3,63,35],[56,1,56,2],[56,3,56,35],[63,1,63,2],[61,5,62,35],[57,5,60,35],[58,0,58,4],[61,0,61,3],[66,22,66,35],[66,2,66,15],[67,2,69,15],[65,2,65,15],[73,1,73,2],[73,3,73,35],[74,3,74,35],[75,3,75,35],[79,3,79,35],[76,3,76,35],[78,2,78,15],[78,22,78,35],[77,2,77,15]]}
["Podmiot ubiegający się o przyznanie pomocy:",null,null,null,null,null,null,null,null,null,null,null,null,{"$f":"IF(I.Cel_II.Ident.!T30=\"\",I.Cel_II.Ident.!B30,I.Cel_II.Ident.!T30&\" \"&I.Cel_II.Ident.!B30)","v":0}]
[]
[]
[null,"VII. ",null,"OŚWIADCZENIE PODMIOTU UBIEGAJĄCEGO SIĘ O PRZYZNANIE POMOCY "]
[]
[null,"1.","Oświadczam, że znane mi są zasady ubiegania się i przyznawania pomocy określone w przepisach rozporządzenia Ministra Rolnictwa i Rozwoju Wsi z dnia 25 lipca 2016 r. w sprawie szczegółowych warunków i trybu przyznawania, wypłaty oraz zwrotu pomocy finansowej na operacje typu „Premie na rozpoczęcie działalności pozarolniczej” w ramach poddziałania „Pomoc na rozpoczęcie pozarolniczej działalności gospodarczej na obszarach wiejskich\" objętego Programem Rozwoju Obszarów Wiejskich na lata 2014–2020 (Dz. U. z 2016 r. poz. 1196, z 2017 r. poz. 1013, z 2018 r. poz. 1071 oraz z 2019 r. poz. 922) oraz wymagania uszczegółowione w Instrukcji wypełniania wniosku o przyznanie pomocy.                                                                                                                                                  "]
[null,"2.","Oświadczam, iż koszty związane z inwestycjami w środki trwałe i inne środki związane z działalnością pozarolniczą nie będą finansowane z innych środków publicznych."]
[null,"3.","Oświadczam, iż nie podlegam zakazowi dostępu do środków publicznych, o których mowa w art. 5 ust. 3 pkt 4 ustawy z dnia 27 sierpnia 2009 r. o finansach publicznych (Dz. U. z 2019 r. poz. 869), na podstawie prawomocnego orzeczenia sądu. \nJednocześnie zobowiązuję się do niezwłocznego poinformowania ARiMR o zakazie dostępu do środków publicznch, o których mowa w art. 5 ust. 3 pkt 4 ustawy z dnia 27 sierpnia 2009 r. o finansach publicznych, na podstawie prawomocnego orzeczenia sądu, orzeczonym w stosunku do mnie po złożeniu wniosku o przyznanie pomocy."]
[null,"4.","Oświadczam, iż jestem świadomy, że zgodnie z art. 35 ust. 5 oraz ust. 6 rozporządzenia delegowanego Komisji (UE) nr 640/2014 z dnia 11 marca 2014 r. uzupełniającego  rozporządzenie  Parlamentu  Europejskiego i  Rady  (UE) nr  1306/2013 w  odniesieniu  do  zintegrowanego  systemu  zarządzania i  kontroli  oraz  warunków  odmowy lub  wycofania  płatności  oraz  do  kar  administracyjnych  mających  zastosowanie  do  płatności bezpośrednich, wsparcia rozwoju obszarów wiejskich oraz zasady wzajemnej zgodności (Dz. Urz. UE L 181 z 20.06.2014, str. 48, z późn. zm.) w przypadku ustalenia poważnej niezgodności/przedstawienia fałszywych dowodów w celu otrzymania wsparcia lub w wyniku zaniedbania nie dostarczenia niezbędnych informacji, wsparcia odmawia się lub cofa się je w całości oraz że zostanę wykluczony z takiego samego środka lub rodzaju operacji w roku kalendarzowym, w którym stwierdzono niezgodność, oraz w kolejnym roku kalendarzowym."]
[null,"5.","Oświadczam, iż znane mi są regulacje art. 59 ust. 7 rozporządzenia Parlamentu Europejskiego i Rady (UE) nr 1306/2013 z dnia 17 grudnia 2013 r. w sprawie finansowania wspólnej polityki rolnej, zarządzania nią i monitorowania jej oraz uchylającego rozporządzenia Rady (EWG) nr 352/78, (WE) nr 165/94, (WE) nr 2799/98, (WE) nr 814/2000, (WE) nr 1290/2005 i (WE) nr 485/2008 (Dz. Urz. UE L 347 z 20.12.2013, str. 549, z późn. zm.) stanowiące, iż wniosek o przyznanie pomocy jest odrzucany, jeżeli podmiot ubiegający się o przyznanie pomocy lub jego przedstawiciel uniemożliwia przeprowadzenie kontroli na miejscu, z wyjątkiem przypadków siły wyższej lub nadzwyczajnych okoliczności."]
[null,"6.","Oświadczam, iż znane mi są regulacje dotyczące prowadzenia oddzielnego systemu rachunkowości albo korzystania z odpowiedniego kodu rachunkowego, o których mowa w art. 66 ust. 1 lit. c pkt i rozporządzenia Parlamentu Europejskiego i Rady (UE) nr 1305/2013 z dnia 17 grudnia 2013 r. w sprawie wsparcia rozwoju obszarów wiejskich przez Europejski Fundusz Rolny na rzecz Rozwoju Obszarów Wiejskich (EFRROW) i uchylającego rozporządzenie Rady (WE) nr 1698/2005 (Dz. Urz. UE L 347 z 20.12.2013, str. 487, z późn. zm.), dla wszystkich transakcji związanych z realizacją operacji, w ramach prowadzonych ksiąg rachunkowych albo przez prowadzenie zestawienia faktur lub równoważnych dokumentów księgowych na formularzu udostępnionym przez ARiMR, gdy beneficjent nie jest zobowiązany do prowadzenia ksiąg rachunkowych na podstawie przepisów odrębnych."]
[null,"7.","Przyjmuję do wiadomości, iż Prezes ARiMR poda do publicznej wiadomości, na stronie internetowej administrowanej przez ARiMR informację o kolejności przysługiwania pomocy, ustalonej przy zastosowaniu kryteriów oceny operacji."]
[null,"8.","Przyjmuję do wiadomości, że moje dane mogą być przetwarzane przez organy audytowe i dochodzeniowe Unii Europejskiej i państw członkowskich dla zabezpieczenia interesów finansowych Unii.\n"]
[null,"9.","Przyjmuję do wiadomości, że informacja o przyznaniu mi pomocy z publicznych środków finansowych, w tym przyznana kwota płatności z tytułu udzielonej pomocy na operacje typu „Premie na rozpoczęcie działalności pozarolniczej” w ramach poddziałania „Pomoc na rozpoczęcie  pozarolniczej działalności gospodarczej na obszarach wiejskich\" będzie publikowana na stronie internetowej MRiRW."]
[null,"10.","Oświadczam, iż jestem świadomy obowiązku każdorazowego informowania ARiMR o wysokości uzyskanej pomocy publicznej jako pomocy de minimis (w tym również pomocy de minimis w rolnictwie i rybołówstwie) do chwili wydania decyzji administracyjnej w sprawie o przyznanie pomocy przez podmiot ubiegający się o przyznanie pomocy oraz podmioty powiązane w rozumieniu przepisów rozporządzenia Komisji (UE) nr 1407/2013 z dnia 18 grudnia 2013 r. w sprawie stosowania art. 107 i 108 Traktatu o funkcjonowaniu Unii Europejskiej do pomocy de minimis (Dz. Urz. UE. L 352 z 24.12.2013, str. 1), rozporządzenia Komisji (UE) nr 1408/2013 z dnia 18 grudnia 2013 r. w sprawie stosowania art. 107 i 108 Traktatu o funkcjonowaniu Unii Europejskiej do pomocy de minimis w sektorze rolnym (Dz. Urz. UE L 352 z 24.12.2013, str. 9, z późn. zm.) oraz rozporządzenia Komisji (UE) nr 717/2014 z dnia 27 czerwca 2014 r. w sprawie stosowania art. 107 i 108 Traktatu o funkcjonowaniu Unii Europejskiej do pomocy de minimis w sektorze rybołówstwa i akwakultury (Dz. Urz. UE L 190 z 28.06.2014, str. 45)."]
[null,"11.","Oświadczam, że podejmuję**: "]
[null,null,null,"po raz pierwszy prowadzenie działalności gospodarczej - zgodnie z § 2a  ust. 1b pkt 1 rozporządzenia wskazanego w pkt 1) niniejszego Oświadczenia albo"]
[]
[]
[]
[null,null,null,"działalność ponownie po upływie co najmniej 24 miesięcy od dnia jej ostatniego zawieszenia lub zakończenia, poprzedzających dzień złożenia wniosku o przyznanie pomocy - zgodnie z § 2a ust. 1b pkt 2 rozporządzenia wskazanego w pkt 1) niniejszego Oświadczenia, albo"]
[]
[]
[]
[null,null,null,"działalność  w określonym przedmiocie działalności gospodarczej według Polskiej Klasyfikacji Działalności (PKD) na poziomie podklasy po raz pierwszy albo ponownie po upływie co najmniej 24 miesięcy od dnia jej wykreślenia z Centralnej Ewidencji i Informacji o Działalności Gospodarczej, poprzedzających dzień złożenia wniosku o przyznanie pomocy - zgodnie z § 2a ust. 1b pkt 3 rozporządzenia wskazanego w pkt 1) niniejszego Oświadczenia."]
[]
[]
[]
[null,"12.","Oświadczam, że  podlegam ubezpieczeniu społecznemu rolników w pełnym zakresie, nieprzerwanie co najmniej od 12 miesięcy poprzedzających dzień złożenia wniosku o przyznanie pomocy. "]
[null,"13.","Jestem świadomy obowiązku każdorazowego informowania ARiMR o wygaśnięciu decyji o przyznaniu pomocy lub uchyleniu decyzji o przyznaniu pomocy w ramach poddziałania \"Płatności na rzecz rolników kwalifikujących się do systemu dla małych gospodarstw, którzy trwale przekazali swoje gospodarstwo innemu rolnikowi\" (dotyczy wyłącznie beneficjentów tego poddziałania oraz ich małżonków)."]
[null,"14.","Oświadczam, iż informacje zawarte we wniosku oraz jego załącznikach są prawdziwe i zgodne ze stanem prawnym i faktycznym; znane mi są skutki składania fałszywych oświadczeń wynikające z art. 297 § 1 ustawy z dnia 6 czerwca 1997 r. - Kodeks karny  (Dz. U. z 2018 r. poz. 1600 i 2077 oraz z 2019 r. poz. 730, 858, 870 i 1135)."]
[]
[null,null,"miejscowość i data",null,null,null,null,null,null,null,null,null,null,null,null,null,null,null,null,null,null,null,"(czytelny podpis podmiotu ubiegającego się o przyznanie pomocy/pełnomocnika tego podmiotu)"]
[null,null,"** zaznaczyć właściwe"]
[]
[]
[]
[null,"VIII. ",null,"KLAUZULA INFORMACYJNA W ZAKRESIE PRZETWARZANIA DANYCH OSOBOWYCH (DOTYCZY PODMIOTU UBIEGAJĄCEGO SIĘ O PRZYZNANIE POMOCY) "]
[]
[null,"Zgodnie z art. 13 rozporządzenia Parlamentu Europejskiego i Rady (UE) 2016/679 z dnia 27 kwietnia 2016 r. w sprawie ochrony osób fizycznych w związku z przetwarzaniem danych osobowych i w sprawie swobodnego przepływu takich danych oraz uchylenia dyrektywy 95/46/WE ogólne rozporządzenie o ochronie danych (Dz. Urz. UE L 119 z 04.05.2016, str. 1 oraz Dz. Urz. UE L 127 z 23.05.2018, str. 2), zwanego dalej: „Rozporządzeniem RODO” Agencja Restrukturyzacji i Modernizacji Rolnictwa informuje, że: "]
[null,"1)","administratorem Pani/Pana danych osobowych jest Agencja Restrukturyzacji i Modernizacji Rolnictwa z siedzibą w Warszawie, Al. Jana Pawła II 70, 00-175 Warszawa;"]
[null,"2)","z administratorem  Pani/Pana danych osobowych może się Pani/Pan kontaktować poprzez adres e-mail: info@arimr.gov.pl lub pisemnie na adres korespondencyjny Centrali Agencji Restrukturyzacji i Modernizacji Rolnictwa, ul. Poleczki 33, 02-822 Warszawa;"]
[null,"3)","administrator danych wyznaczył inspektora ochrony danych, z którym może się Pani/Pan kontaktować w sprawach dotyczących przetwarzania danych osobowych oraz korzystania z praw związanych z przetwarzaniem danych, poprzez adres e-mail: iod@arimr.gov.pl lub pisemnie na adres korespondencyjny administratora danych, wskazany w pkt 2; "]
[null,"4)","zebrane Pani/Pana dane osobowe będą przetwarzane przez administratora danych na podstawie art. 6 ust. 1 lit. c  Rozporządzenia RODO, gdy jest to niezbędne do wypełnienia obowiązku prawnego ciążącego na administratorze danych (dane obowiązkowe) lub art. 6 ust. 1 lit. a Rozporządzenia RODO, tj. na podstawie odrębnej zgody na przetwarzanie danych osobowych, która obejmuje zakres danych szerszy, niż to wynika z powszechnie obowiązującego prawa (dane nieobowiązkowe);\n"]
[null,"5)","zebrane Pani/Pana dane osobowe na podstawie art. 6  ust. 1 lit. c Rozporządzenia RODO będą przetwarzane przez administratora danych w celu realizacji zadań wynikających z art. 6 ust. 2 w zw. z art. 3 ust. 1 pkt 6 lit. b ustawy z dnia 20 lutego 2015 r. o wspieraniu rozwoju obszarów wiejskich z udziałem środków Europejskiego Funduszu Rolnego na rzecz Rozwoju Obszarów Wiejskich w ramach Programu Rozwoju Obszarów Wiejskich na lata 2014-2020 (Dz. U. z 2018 r. poz. 627 oraz z 2019 r. poz. 83 i 504), w związku z rozporządzeniem Ministra Rolnictwa i Rozwoju Wsi z dnia 25 lipca 2016 r. w sprawie szczegółowych warunków i trybu przyznawania, wypłaty oraz zwrotu pomocy finansowej na operacje typu „Premie na rozpoczęcie działalności pozarolniczej” w ramach poddziałania „Pomoc na rozpoczęcie pozarolniczej działalności gospodarczej na obszarach wiejskich” objętego Programem Rozwoju Obszarów Wiejskich na lata 2014-2020 (Dz. U. z 2016 r. poz. 1196, z 2017 r. poz. 1013, z 2018 r. poz. 1071 oraz z 2019 r. poz. 922), tj. w celu przyznania pomocy finansowej;\n"]
[null,"6)","zebrane Pani/Pana dane osobowe mogą być udostępniane podmiotom publicznym uprawnionym do przetwarzania danych osobowych na podstawie przepisów powszechnie obowiązującego prawa oraz podmiotom przetwarzającym dane osobowe na zlecenie administratora w związku z wykonywaniem powierzonego im zadania w drodze zawartej umowy, m.in. dostawcom IT;\n"]
[null,"7)","zebrane Pani/Pana dane osobowe na podstawie art. 6 ust. 1 lit. c) Rozporządzenia RODO, będą przetwarzane:\n- od dnia ich pozyskania do dnia, w którym upłynął okres zobowiązań w związku z przyznaniem pomocy  na operację, której dotyczy ten wniosek oraz \n- od dnia upływu okresu zobowiązań w związku  z przyznaną pomocą do dnia  1 stycznia roku następującego po roku, w którym upłynął okres zobowiązań w związku z przyznaniem pomocy  na operację, której dotyczy ten wniosek, oraz\n- od dnia 1 stycznia roku następującego po roku, w którym upłynął okres zobowiązań w związku z przyznaniem pomocy  na operację, której dotyczy ten wniosek do dnia upływu 5 lat od tej daty.  Okres przechowywania danych może zostać każdorazowo przedłużony o okres przedawnienia roszczeń, jeżeli przetwarzanie danych będzie niezbędne do dochodzenia roszczeń lub do obrony przed takimi roszczeniami przez administratora danych.\nPonadto, okres przechowywania danych może zostać przedłużony na okres potrzebny do przeprowadzenia archiwizacji;"]
[null,"8)","Pani/Pana dane osobowe zebrane na podstawie art. 6 ust. 1 lit. a Rozporządzenia RODO, tj. na podstawie odrębnej zgody na przetwarzanie danych osobowych, będą przetwarzane:                                   \n- od dnia ich pozyskania do dnia w którym upłynął okres zobowiązań w związku z przyznaniem pomocy  na operację, której dotyczy ten wniosek oraz \n- od dnia upływu okresu zobowiązań w związku  z przyznaną pomocą do dnia  1 stycznia roku następującego po roku, w którym upłynął okres zobowiązań w związku z przyznaniem pomocy  na operację, której dotyczy ten wniosek, oraz\n- od dnia 1 stycznia roku następującego po roku, w którym upłynął okres zobowiązań w związku z przyznaniem pomocy  na operację, której dotyczy ten wniosek do dnia upływu 5 lat od tej daty, lub do czasu jej odwołania; "]
[null,"9)","przysługuje Pani/Panu prawo dostępu do Pani/Pana danych, prawo żądania ich sprostowania, usunięcia lub ograniczenia ich przetwarzania, w przypadkach określonych w Rozporządzeniu RODO;"]
[null,"10)","w przypadkach, w których przetwarzanie Pani/Pana danych osobowych odbywa się na podstawie art. 6 ust. 1 lit. a Rozporządzenia RODO, tj. na podstawie odrębnej zgody na przetwarzanie danych osobowych, przysługuje Pani/Panu prawo do odwołania tej zgody lub zmiany w dowolnym momencie, bez wpływu na zgodność z prawem przetwarzania, którego dokonano na podstawie zgody przed jej odwołaniem;"]
[null,"11)","w przypadku uznania, że przetwarzanie Pani/Pana danych osobowych narusza przepisy Rozporządzenia RODO, przysługuje Pani/Panu prawo wniesienia skargi do Prezesa Urzędu Ochrony Danych Osobowych;"]
[null,"12)","podanie Pani/Pana danych osobowych na podstawie art. 6 ust. 1 lit. c Rozporządzenia RODO we wniosku o przyznanie pomocy na operacje typu „Premie na rozpoczęcie działalności pozarolniczej” w ramach poddziałania „Pomoc na rozpoczęcie pozarolniczej działalności gospodarczej na obszarach wiejskich” objętego Programem Rozwoju Obszarów Wiejskich na lata 2014-2020 wynika z obowiązku zawartego w przepisach powszechnie obowiązujących, a konsekwencją niepodania tych danych osobowych będzie pozostawienie wniosku bez rozpoznania/pozostawienie wniosku bez rozpoznania po uprzednim jednokrotnym wezwaniu do uzupełnienia braków we wniosku."]
[]
[]
[]
[]
[null,"IX. ",null," ZGODA PODMIOTU UBIEGAJĄCEGO SIĘ O PRZYZNANIE POMOCY/PEŁNOMOCNIKA  \n(aby wyrazić zgodę należy wybrać z listy rozwijanej X)"]
[null,null,null,null,null,"Wyrażam zgodę na przetwarzanie przez Agencję Restrukturyzacji i Modernizacji Rolnictwa z siedzibą w Warszawie, Al. Jana Pawła II nr 70, 00-175 Warszawa (adres do korespondencji: ul. Poleczki 33, 02-822 Warszawa), jako administratora danych osobowych, danych podanych w zakresie szerszym, niż jest to wymagane na podstawie przepisów powszechnie obowiązującego prawa, oznaczonych w formularzu „Wniosku o przyznanie pomocy na operacje typu „Premie na rozpoczęcie działalności pozarolniczej” w ramach poddziałania 6.2 „Pomoc na rozpoczęcie pozarolniczej działalności gospodarczej na obszarach wiejskich” objętego Programem Rozwoju Obszarów Wiejskich na lata 2014-2020” jako „dane nieobowiązkowe”, w celu ułatwienia kontaktu ze mną w sprawach dotyczących przyznania pomocy finansowej."]
["Podmiot ubiegający się o przyznanie pomocy "]
[]
[]
["Pełnomocnik",null,null,null,null,"Podanie ww. danych jest dobrowolne, a ich niepodanie nie wpływa na proces przyjęcia i rozpatrzenia wniosku o pomoc na operacje realizowane w ramach poddziałania „Pomoc na rozpoczęcie pozarolniczej działalności gospodarczej na obszarach wiejskich”  objętego Programem Rozwoju Obszarów Wiejskich na lata 2014-2020. Niepodanie tych danych uniemożliwi jedynie realizację celu wskazanego w treści powyższej zgody. Powyższą zgodę można wycofać w dowolnym momencie, poprzez przesłanie \"oświadczenia o wycofaniu zgody\" na adresy korespondencyjne administratora danych z dopiskiem \"Ochrona danych osobowych\" lub na adresy e-mail: info@arimr.gov.pl, iod@arimr.gov.pl.\nWycofanie zgody nie wpływa na zgodność z prawem przetwarzania, którego dokonano na podstawie zgody przed jej wycofaniem."]
[]
[]
[]
[]
[null,null,"miejscowość i data",null,null,null,null,null,null,null,null,null,null,null,null,null,null,null,null,null,null,null,"(czytelny podpis podmiotu ubiegającego się o przyznanie pomocy/pełnomocnika tego podmiotu)"]
[]
[]
[]
[null,null,"miejscowość i data",null,null,null,null,null,null,null,null,null,null,null,null,null,null,null,null,null,null,null,"(czytelny podpis pełnomocnika)"]
[]
[]
[null,"X. ",null,"Oświadczenie wobec ARiMR o wypełnieniu obowiązku informacyjnego wobec innych osób fizycznych"]
[null,null,"1.","ARiMR informuje, że staje się administratorem danych osobowych osoby/osób fizycznych, pozyskanych od Wnioskodawcy, które to dane osobowe Wnioskodawca bezpośrednio lub pośrednio pozyskał w celu przyznania pomocy."]
[null,null,"2.","Wnioskodawca oświadcza, że dane osobowe, o których mowa w pkt 1, przetwarza zgodnie  z obowiązującymi w tym zakresie regulacjami prawnymi i jest uprawniony do ich przekazania ARiMR oraz uczynił zadość wszelkim obowiązkom związanym z ich przekazaniem, a w szczególności poinformował osobę/osoby, których dane przekazuje, o fakcie i celu ich przekazania.\n"]
[null,null,"3.","Wnioskodawca oświadcza, iż poinformował osobę/osoby fizyczne, o których mowa w pkt 1, o treści klauzuli stanowiącej Załącznik nr 5 do wniosku o przyznanie pomocy."]
[]
[null,null,"miejscowość i data",null,null,null,null,null,null,null,null,null,null,null,null,null,null,null,null,null,null,null,"(czytelny podpis podmiotu ubiegającego się o przyznanie pomocy/pełnomocnika tego podmiotu)"]

{"sheet":"zał.4 następca_prawny","index":8,"n_rows":40,"n_cols":25,"rows_kept":40,"cut":false,"hidden":true,"merged":[[42,1,42,14],[23,2,23,12],[25,2,25,28],[26,2,26,28],[27,2,27,28],[31,2,33,11],[31,19,33,28],[34,2,34,10],[34,19,34,28],[37,19,37,28],[39,1,39,28],[40,2,40,28],[21,2,21,28],[0,24,0,28],[1,1,1,12],[1,24,1,28],[2,1,2,12],[2,24,3,28],[4,2,9,12],[4,25,4,27],[5,25,5,27],[10,2,10,12],[10,21,12,28],[13,3,14,28],[17,2,17,28],[19,2,20,28]]}
[]
[null,"Załącznik nr  do wniosku o przyznanie pomocy",null,null,null,null,null,null,null,null,null,null,null,null,null,null,null,null,null,null,null,null,null,null,"W-1.4_6.4"]
[]
[]
[]
[]
[]
[]
[]
[]
[null,null," Imię i nazwisko, adres, seria i numer dokumentu tożsamości,NIP* / Nazwa, adres siedziby, NIP, REGON     "]
[]
[]
[null,null,null,"Oświadczenie następcy prawnego beneficjenta "]
[]
[]
[]
[null,null,"Oświadczam, że wstąpiłem w prawa i obowiązki beneficjenta wynikające z umowy przyznania pomocy nr: "]
[]
[]
[]
[null,null,"(numer umowy przyznania pomocy zawartej przez Agencję z beneficjentem)"]
[]
[null,null,"zawartej pomiędzy Agencją a"]
[]
[]
[null,null,"(Imię i nazwisko Beneficjenta, adres,seria i numer dokumentu tożsamości, NIP* lub                                                                                                                                        Nazwa Beneficjenta, Adres siedziby, NIP, REGON)"]
[]
[]
[]
[]
[]
[]
[]
[null,null,"(miejscowość i data)",null,null,null,null,null,null,null,null,null,null,null,null,null,null,null,null,"(podpis Wnioskodawcy (Następcy prawnego beneficjenta)/ osoby reprezentującej Wnioskodawcę/ pełnomocnika Wnioskodawcy)"]
[]
[]
[]
[]
[null,"*Obowiązek podawania numeru NIP nie dotyczy osób fizycznych objętych rejestrem PESEL, nieprowadzących działalności gospodarczej lub niebędących zarejestrowanymi podatnikami podatku od towarów i usług"]

{"sheet":"Zał2_ośw_współ","index":9,"n_rows":43,"n_cols":32,"rows_kept":43,"cut":false,"hidden":false,"merged":[[1,2,1,17],[1,31,1,36],[2,2,2,17],[3,2,3,17],[4,2,4,17],[5,2,5,17],[5,26,6,36],[6,2,6,17],[14,2,14,36],[15,2,16,36],[11,2,11,36],[12,2,12,36],[13,2,13,36],[6,40,6,41],[7,2,7,36],[8,3,8,36],[9,2,9,36],[10,2,10,36],[18,2,18,36],[17,2,17,36],[24,1,24,14],[24,22,24,36],[36,1,36,36],[22,2,22,36],[23,1,23,14],[23,22,23,36],[41,1,41,37],[19,2,19,36],[20,10,20,30],[33,1,33,36],[34,1,34,36],[35,1,35,36],[29,1,29,36],[30,1,30,36],[37,1,37,36],[38,1,38,36],[39,1,39,36],[26,1,26,36],[28,1,28,36],[27,1,27,36],[31,1,31,36],[32,1,32,36]]}
[]
[null,null,"Imię i Nazwisko/Nazwa",null,null,null,null,null,null,null,null,null,null,null,null,null,null,null,null,null,null,null,null,null,null,null,null,null,null,null,null,"W-1.2/6.2"]
[]
[null,null,"Adres zamieszkania/Adres siedziby*"]
[]
[null,null,"PESEL/NIP1"]
[]
[]
[null,null,null,"Oświadczenie"]
[null,null,"właściciela albo współwłaściciela nieruchomości o wyrażeniu zgody na realizację operacji związanej z budową, przebudową lub remontem połączonym z modernizacją, w przypadku gdy operacja będzie realizowana na nieruchomości niestanowiącej własności podmiotu ubiegającego się o przyznanie pomocy albo stanowiącej współwłasność tego podmiotu"]
[]
[null,null,"Oświadczam, iż wyrażam zgodę na ubieganie się o przyznanie pomocy przez:"]
[]
[null,null,"(Imię i nazwisko podmiotu ubiegającego się o przyznanie pomocy, adres, PESEL)"]
[null,null,"na realizację operacji typu „Premie na rozpoczęcie działalności pozarolniczej” w ramach poddziałania „Pomoc na rozpoczęcie  pozarolniczej działalności gospodarczej na obszarach wiejskich\" objętego Programem Rozwoju Obszarów Wiejskich na lata 2014–2020, polegającej na:"]
[]
[]
[null,null,"(zakres operacji)"]
[null,null,"w nieruchomości, której jestem właścicielem/współwłaścicielem2 w skład której wchodzi/ą:"]
[]
[null,null,null,null,null,null,null,null,null,null,"(nr działki/działek będących we współwłasności/ rodzaj nieruchomości)"]
[]
[null,null,"Jednocześnie wyrażam zgodę na utrzymanie przedmiotowej operacji do dnia upływu 6 lat od dnia złożenia wniosku o przyznanie pomocy. "]
[]
[null,"miejscowość i data",null,null,null,null,null,null,null,null,null,null,null,null,null,null,null,null,null,null,null,null,"(czytelny podpis właściciela/współwłaściciela nieruchomości albo osoby reprezentującej właściciela/współwłaściciela nieruchomości albo pełnomocnika właściciela/współwłaściciela nieruchomości)"]
[]
[null,"Klauzula informacyjna w zakresie przetwarzania danych osobowych (dotyczy osób fizycznych)"]
[null,"Zgodnie z art. 13 rozporządzenia Parlamentu Europejskiego i Rady (UE) 2016/679 z dnia 27 kwietnia 2016 r. w sprawie ochrony osób fizycznych w związku z przetwarzaniem danych osobowych i w sprawie swobodnego przepływu takich danych oraz uchylenia dyrektywy 95/46/WE ogólne rozporządzenie o ochronie danych (Dz. Urz. UE L 119 z 04.05.2016, str. 1 oraz Dz. Urz. UE L 127 z 23.05.2018, str. 2), zwanego dalej: „Rozporządzeniem RODO” Agencja Restrukturyzacji i Modernizacji Rolnictwa informuje, że:"]
["1)","administratorem Pani/Pana danych osobowych jest Agencja Restrukturyzacji i Modernizacji Rolnictwa z siedzibą w Warszawie, Al. Jana Pawła II 70, 00-175 Warszawa;"]
["2)","z administratorem Pani/Pana danych osobowych może się Pani/Pan kontaktować poprzez adres e-mail: info@arimr.gov.pl lub pisemnie na adres korespondencyjny Centrali Agencji Restrukturyzacji i Modernizacji Rolnictwa, ul. Poleczki 33, 02-822 Warszawa;"]
["3)","administrator danych wyznaczył inspektora ochrony danych, z którym może sie Pani/Pan kontaktować w sprawach dotyczących przetwarzania danych osobowych oraz korzystania z praw związanych z przetwarzaniem danych, poprzez adres e-mail: iod@arimr.gov.pl lub pisemnie na adres korespondencyjny administratora danych, wskazany w pkt 2; "]
["4)","zebrane Pani/Pana dane osobowe będą przetwarzane przez administratora danych na podstawie art. 6 ust. 1 lit. c Rozporządzenia RODO, gdy jest to niezbędne do wypełnienia obowiązku prawnego ciążącego na administratorze danych (dane obowiązkowe) lub art. 6 ust. 1 lit. a Rozporządzenia RODO, tj. na podstawie odrębnej zgody na przetwarzanie danych osobowych, która obejmuje zakres danych szerszy, niż to wynika z powszechnie obowiązującego prawa (dane nieobowiązkowe);\n"]
["5)","zebrane Pani/Pana dane osobowe na podstawie art. 6  ust. 1 lit. c Rozporządzenia RODO będą przetwarzane przez administratora danych w celu realizacji zadań wynikających z art. 6 ust. 2 w zw. z art. 3 ust. 1 pkt 6 lit. b ustawy z dnia 20 lutego 2015 r. o wspieraniu rozwoju obszarów wiejskich z udziałem środków Europejskiego Funduszu Rolnego na rzecz Rozwoju Obszarów Wiejskich w ramach Programu Rozwoju Obszarów Wiejskich na lata 2014-2020 (Dz. U. z 2018 r. poz. 627 oraz z 2019 r. poz. 83 i 504), w związku z rozporządzeniem Ministra Rolnictwa i Rozwoju Wsi z dnia 25 lipca 2016 r. w sprawie szczegółowych warunków i trybu przyznawania, wypłaty oraz zwrotu pomocy finansowej na operacje typu „Premie na rozpoczęcie działalności pozarolniczej” w ramach poddziałania „Pomoc na rozpoczęcie pozarolniczej działalności gospodarczej na obszarach wiejskich” objętego Programem Rozwoju Obszarów Wiejskich na lata 2014-2020 (Dz. U. z 2016 r. poz. 1196, z 2017 r. poz. 1013, z 2018 r. poz. 1071 oraz z 2019 r. poz. 922), tj. w celu przyznania pomocy finansowej; "]
["6)","zebrane Pani/Pana dane osobowe mogą być udostępniane podmiotom publicznym uprawnionym do przetwarzania danych osobowych na podstawie przepisów powszechnie obowiązującego prawa oraz podmiotom przetwarzającym dane osobowe na zlecenie administratora w związku z wykonywaniem powierzonego im zadania w drodze zawartej umowy, m.in. dostawcom IT;\n"]
["7)","zebrane Pani/Pana dane osobowe na podstawie art. 6 ust. 1 lit. c Rozporządzenia RODO, będą przetwarzane:\n- od dnia ich pozyskania do dnia, w którym upłynął okres zobowiązań w związku z przyznaniem pomocy  na operację, której dotyczy ten wniosek oraz \n- od dnia upływu okresu zobowiązań w związku  z przyznaną pomocą do dnia  1 stycznia roku następującego po roku, w którym upłynął okres zobowiązań w związku z przyznaniem pomocy  na operację, której dotyczy ten wniosek, oraz\n- od dnia 1 stycznia roku następującego po roku, w którym upłynął okres zobowiązań w związku z przyznaniem pomocy  na operację, której dotyczy ten wniosek do dnia upływu 5 lat od tej daty.  Okres przechowywania danych może zostać każdorazowo przedłużony o okres przedawnienia roszczeń, jeżeli przetwarzanie danych będzie niezbędne do dochodzenia roszczeń lub do obrony przed takimi roszczeniami przez administratora danych.\nPonadto, okres przechowywania danych może zostać przedłużony na okres potrzebny do przeprowadzenia archiwizacji; "]
["8)","Pani/Pana dane osobowe zebrane na podstawie art. 6 ust. 1 lit. a Rozporządzenia RODO, tj. na podstawie odrębnej zgody na przetwarzanie danych osobowych, będą przetwarzane:                                   \n- od dnia ich pozyskania do dnia, w którym upłynął okres zobowiązań w związku z przyznaniem pomocy  na operację, której dotyczy ten wniosek oraz \n- od dnia upływu okresu zobowiązań w związku  z przyznaną pomocą do dnia  1 stycznia roku następującego po roku, w którym upłynął okres zobowiązań w związku z przyznaniem pomocy  na operację, której dotyczy ten wniosek, oraz\n- od dnia 1 stycznia roku następującego po roku, w którym upłynął okres zobowiązań w związku z przyznaniem pomocy  na operację, której dotyczy ten wniosek do dnia upływu 5 lat od tej daty, lub do czasu jej odwołania; "]
["9)","przysługuje Pani/Panu prawo dostępu do Pani/Pana danych, prawo żądania ich sprostowania, usunięcia lub ograniczenia ich przetwarzania, w przypadkach określonych w Rozporządzeniu RODO;"]
["10)","w przypadkach, w których przetwarzanie Pani/Pana danych osobowych odbywa się na podstawie art. 6 ust. 1 lit. a Rozporządzenia RODO, tj. na podstawie odrębnej zgody na przetwarzanie danych osobowych, przysługuje Pani/Panu prawo do odwołania tej zgody lub zmiany w dowolnym momencie, bez wpływu na zgodność z prawem przetwarzania, którego dokonano na podstawie zgody przed jej odwołaniem;"]
["11)","w przypadku uznania, że przetwarzanie Pani/Pana danych osobowych narusza przepisy Rozporządzenia RODO, przysługuje Pani/Panu prawo wniesienia skargi do Prezesa Urzędu Ochrony Danych Osobowych;"]
["12)","podanie Pani/Pana danych osobowych na podstawie art. 6 ust. 1 lit. c Rozporządzenia RODO we wniosku o przyznanie pomocy na operacje typu „Premie na rozpoczęcie działalności pozarolniczej” w ramach poddziałania „Pomoc na rozpoczęcie pozarolniczej działalności gospodarczej na obszarach wiejskich” objętego Programem Rozwoju Obszarów Wiejskich na lata 2014-2020 wynika z obowiązku zawartego w przepisach powszechnie obowiązujących, a konsekwencją niepodania tych danych osobowych będzie pozostawienie wniosku bez rozpoznania/ pozostawienie wniosku bez rozpoznania po uprzednim jednokrotnym wezwaniu do uzupełnienia braków we wniosku. \n"]
[]
[null,"1Obowiązek podawania numeru NIP nie dotyczy osób fizycznych objętych rejestrem PESEL, nieprowadzących działalności gospodarczej lub niebędących zarejestrowanymi podatnikami podatku od towarów i usług."]
[null,"* Dane nieobowiązkowe."]

{"sheet":"Zał3_ośw_zaprzest","index":10,"n_rows":49,"n_cols":32,"rows_kept":49,"cut":false,"hidden":false,"merged":[[46,1,46,37],[47,1,47,37],[48,1,48,37],[29,2,29,15],[29,21,29,36],[43,1,43,36],[6,40,6,41],[7,2,7,36],[8,3,8,36],[9,2,9,36],[9,38,11,39],[1,2,1,17],[1,31,1,36],[2,2,2,17],[3,2,3,17],[4,2,4,17],[5,2,5,17],[5,26,6,36],[20,19,20,20],[22,19,22,20],[24,19,24,20],[12,2,12,36],[13,2,13,36],[14,2,14,36],[10,2,10,36],[11,2,11,36],[6,2,6,17],[15,2,16,36],[17,2,17,36],[18,2,18,36],[26,2,27,36],[44,1,44,36],[32,1,32,36],[31,1,31,36],[33,1,33,36],[34,1,34,36],[35,1,35,36],[36,1,36,36],[37,1,37,36],[38,1,38,36],[39,1,39,36],[40,1,40,36],[41,1,41,36],[42,1,42,36],[28,2,28,16],[28,21,28,36]]}
[]
[null,null,"Imię i Nazwisko/Nazwa",null,null,null,null,null,null,null,null,null,null,null,null,null,null,null,null,null,null,null,null,null,null,null,null,null,null,null,null,"W-1.3/6.2"]
[]
[null,null,"Adres zamieszkania/Adres siedziby*"]
[]
[null,null,"PESEL/NIP1"]
[]
[]
[null,null,null,"Oświadczenie"]
[null,null,"właściciela albo współwłaściciela gospodarstwa\no wyrażeniu zgody na realizację operacji oraz o zaprzestaniu i niepodejmowaniu\n chowu lub hodowli świń w gospodarstwie"]
[]
[null,null,"Oświadczam, iż wyrażam zgodę na ubieganie się o przyznanie pomocy przez:"]
[]
[null,null,"(Imię i nazwisko podmiotu ubiegającego się o przyznanie pomocy, adres, PESEL)"]
[null,null,"na realizację operacji typu „Premie na rozpoczęcie działalności pozarolniczej” w ramach poddziałania „Pomoc na rozpoczęcie  pozarolniczej działalności gospodarczej na obszarach wiejskich\" objętego Programem Rozwoju Obszarów Wiejskich na lata 2014–2020, polegającej na:"]
[]
[]
[null,null,"(zakres operacji)"]
[null,null,"w gospodarstwie, którego jestem właścicielem/współwłaścicielem2 w skład którego wchodzą następujące siedziby stad świń (numery siedzib stad):"]
[]
[null,null,"a)","P","L",null,null,null,null,null,null,null,null,null,null,null,null,null,null,null,null,"d)","P","L"]
[]
[null,null,"b)","P","L",null,null,null,null,null,null,null,null,null,null,null,null,null,null,null,null,"e)","P","L"]
[]
[null,null,"c)","P","L",null,null,null,null,null,null,null,null,null,null,null,null,null,null,null,null,"f)","P","L"]
[]
[null,null,"Ponadto zobowiazuję się do:\n- zaprzestania chowu i hodowli świń w gospodarstwie w terminie 9 miesięcy od dnia doręczenia decyzji o przyznaniu pomocy w ramach ww.  operacji,\n- niepodejmowania chowu i hodowli świń w gospodarstwie co najmniej do dnia upływu 5 lat od dnia wypłaty pierwszej raty pomocy i jestem świadomy, iż w przypadku naruszenia ww. zobowiązań podmiot ubiegający się o przyznanie pomocy zostanie zobowiązany do zwrotu wypłaconych środków.  "]
[]
[]
[null,null,"miejscowość i data",null,null,null,null,null,null,null,null,null,null,null,null,null,null,null,null,null,null,"(czytelny podpis właściciela/współwłaściciela gospodarstwa rolnego albo osoby reprezentującej właściciela/współwłaściciela gospodarstwa rolnego albo pełnomocnika właściciela/współwłaściciela gospodarstwa rolnego)"]
[]
[null,"Klauzula informacyjna w zakresie przetwarzania danych osobowych (dotyczy osób fizycznych) "]
[null,"Zgodnie z art. 13 rozporządzenia Parlamentu Europejskiego i Rady (UE) 2016/679 z dnia 27 kwietnia 2016 r. w sprawie ochrony osób fizycznych w związku z przetwarzaniem danych osobowych i w sprawie swobodnego przepływu takich danych oraz uchylenia dyrektywy 95/46/WE ogólne rozporządzenie o ochronie danych (Dz. Urz. UE L 119 z 04.05.2016, str. 1 oraz Dz. Urz. UE L 127 z 23.05.2018, str. 2), zwanego dalej: „Rozporządzeniem RODO” Agencja Restrukturyzacji i Modernizacji Rolnictwa informuje, że:"]
["1)","administratorem Pani/Pana danych osobowych jest Agencja Restrukturyzacji i Modernizacji Rolnictwa z siedzibą w Warszawie, Al. Jana Pawła II 70, 00-175 Warszawa;"]
["2)","z administratorem  danych osobowych może się Pani/Pan kontaktować poprzez adres e-mail: info@arimr.gov.pl lub pisemnie na adres korespondencyjny Centrali Agencji Restrukturyzacji i Modernizacji Rolnictwa, ul. Poleczki 33, 02-822 Warszawa;"]
["3)","administrator danych wyznaczył inspektora ochrony danych, z którym może sie Pani/Pan kontaktować w sprawach dotyczących przetwarzania danych osobowych oraz korzystania z praw związanych z przetwarzaniem danych, poprzez adres e-mail: iod@arimr.gov.pl lub pisemnie na adres korespondencyjny administratora danych, wskazany w pkt 2; "]
["4)","zebrane Pani/Pana dane osobowe będą przetwarzane przez administratora danych na podstawie art. 6 ust. 1 lit. c Rozporządzenia RODO, gdy jest to niezbędne do wypełnienia obowiązku prawnego ciążącego na administratorze danych (dane obowiązkowe) lub art. 6 ust. 1 lit. a Rozporządzenia RODO, tj. na podstawie odrębnej zgody na przetwarzanie danych osobowych, która obejmuje zakres danych szerszy, niż to wynika z powszechnie obowiązującego prawa (dane nieobowiązkowe);\n"]
["5)","zebrane Pani/Pana dane osobowe na podstawie art. 6  ust. 1 lit. c Rozporządzenia RODO będą przetwarzane przez administratora danych w celu realizacji zadań wynikających z art. 6 ust. 2 w zw. z art. 3 ust. 1 pkt 6 lit. b ustawy z dnia 20 lutego 2015 r. o wspieraniu rozwoju obszarów wiejskich z udziałem środków Europejskiego Funduszu Rolnego na rzecz Rozwoju Obszarów Wiejskich w ramach Programu Rozwoju Obszarów Wiejskich na lata 2014-2020 (Dz. U. z 2018 r. poz. 627 oraz z 2019 r. poz. 83 i 504), w związku z rozporządzeniem Ministra Rolnictwa i Rozwoju Wsi z dnia 25 lipca 2016 r. w sprawie szczegółowych warunków i trybu przyznawania, wypłaty oraz zwrotu pomocy finansowej na operacje typu „Premie na rozpoczęcie działalności pozarolniczej” w ramach poddziałania „Pomoc na rozpoczęcie pozarolniczej działalności gospodarczej na obszarach wiejskich” objętego Programem Rozwoju Obszarów Wiejskich na lata 2014-2020 (Dz. U. z 2016 r. poz. 1196, z 2017 r. poz. 1013, z 2018 r. poz. 1071 oraz z 2019 r. poz. 922), tj. w celu przyznania pomocy finansowej; \n"]
["6)","zebrane Pani/Pana dane osobowe mogą być udostępniane podmiotom publicznym uprawnionym do przetwarzania danych osobowych na podstawie przepisów powszechnie obowiązującego prawa oraz podmiotom przetwarzającym dane osobowe na zlecenie administratora w związku z wykonywaniem powierzonego im zadania w drodze zawartej umowy, m.in. dostawcom IT;\n"]
["7)","zebrane Pani/Pana dane osobowe na podstawie art. 6 ust. 1 lit. c Rozporządzenia RODO, będą przetwarzane:\n- od dnia ich pozyskania do dnia, w którym upłynął okres zobowiązań w związku z przyznaniem pomocy  na operację, której dotyczy ten wniosek oraz \n- od dnia upływu okresu zobowiązań w związku  z przyznaną pomocą do dnia  1 stycznia roku następującego po roku, w którym upłynął okres zobowiązań w związku z przyznaniem pomocy  na operację, której dotyczy ten wniosek, oraz\n- od dnia 1 stycznia roku następującego po roku, w którym upłynął okres zobowiązań w związku z przyznaniem pomocy  na operację, której dotyczy ten wniosek do dnia upływu 5 lat od tej daty.  Okres przechowywania danych może zostać każdorazowo przedłużony o okres przedawnienia roszczeń, jeżeli przetwarzanie danych będzie niezbędne do dochodzenia roszczeń lub do obrony przed takimi roszczeniami przez administratora danych.\nPonadto, okres przechowywania danych może zostać przedłużony na okres potrzebny do przeprowadzenia archiwizacji; "]
["8)","Pani/Pana dane osobowe zebrane na podstawie art. 6 ust. 1 lit. a Rozporządzenia RODO, tj. na podstawie odrębnej zgody na przetwarzanie danych osobowych, będą przetwarzane:                                   \n- od dnia ich pozyskania do dnia, w którym upłynął okres zobowiązań w związku z przyznaniem pomocy  na operację, której dotyczy ten wniosek oraz \n- od dnia upływu okresu zobowiązań w związku  z przyznaną pomocą do dnia  1 stycznia roku następującego po roku, w którym upłynął okres zobowiązań w związku z przyznaniem pomocy  na operację, której dotyczy ten wniosek, oraz\n- od dnia 1 stycznia roku następującego po roku, w którym upłynął okres zobowiązań w związku z przyznaniem pomocy  na operację, której dotyczy ten wniosek do dnia upływu 5 lat od tej daty, lub do czasu jej odwołania; "]
["9)","przysługuje Pani/Panu prawo dostępu do Pani/Pana danych, prawo żądania ich sprostowania, usunięcia lub ograniczenia ich przetwarzania, w przypadkach określonych w Rozporządzeniu RODO;"]
["10)","w przypadkach, w których przetwarzanie Pani/Pana danych osobowych odbywa się na podstawie art. 6 ust. 1 lit. a Rozporządzenia RODO, tj. na podstawie odrębnej zgody na przetwarzanie danych osobowych, przysługuje Pani/Panu prawo do odwołania tej zgody lub zmiany w dowolnym momencie, bez wpływu na zgodność z prawem przetwarzania, którego dokonano na podstawie zgody przed jej odwołaniem;"]
["11)","w przypadku uznania, że przetwarzanie danych osobowych narusza przepisy Rozporządzenia RODO, przysługuje Pani/Panu prawo wniesienia skargi do Prezesa Urzędu Ochrony Danych Osobowych;"]
["12)","podanie danych osobowych na podstawie art. 6 ust. 1 lit. c Rozporządzenia RODO we wniosku o przyznanie pomocy na operacje typu „Premie na rozpoczęcie działalności pozarolniczej” w ramach poddziałania „Pomoc na rozpoczęcie pozarolniczej działalności gospodarczej na obszarach wiejskich” objętego Programem Rozwoju Obszarów Wiejskich na lata 2014-2020 wynika z obowiązku zawartego w przepisach powszechnie obowiązujących, a konsekwencją niepodania tych danych osobowych będzie pozostawienie wniosku bez rozpoznania/ pozostawienie wniosku bez rozpoznania po uprzednim jednokrotnym wezwaniu do uzupełnienia braków we wniosku.\n"]
[]
[null,"1 Obowiązek podawania numeru NIP nie dotyczy osób fizycznych objętych rejestrem PESEL, nieprowadzących działalności gospodarczej lub niebędących zarejestrowanymi podatnikami podatku od towarów i usług."]
[null,"2 Niepotrzebne skreślić. "]
[null,"* Dane nieobowiązkowe."]

{"sheet":"Zał4 ośw. następcy","index":11,"n_rows":32,"n_cols":32,"rows_kept":32,"cut":false,"hidden":false,"merged":[[31,1,31,36],[32,2,32,36],[34,1,34,19],[17,2,17,36],[28,22,29,36],[21,2,21,36],[22,2,22,36],[25,20,25,37],[15,2,16,36],[24,21,24,36],[24,2,24,20],[19,2,19,36],[26,22,27,36],[0,32,0,36],[7,32,8,36],[1,2,1,17],[1,31,1,36],[13,2,13,36],[2,2,2,17],[9,2,10,36],[7,40,7,41],[3,2,3,17],[4,2,4,17],[5,2,5,17],[6,2,6,17],[7,2,7,17],[4,32,6,36]]}
[]
[null,null,null,null,null,null,null,null,null,null,null,null,null,null,null,null,null,null,null,null,null,null,null,null,null,null,null,null,null,null,null,"W-1.4/6.2"]
[null,null,"Imię i Nazwisko/Nazwa"]
[]
[null,null,"Adres zamieszkania/Adres siedziby"]
[]
[null,null,"PESEL/NIP1"]
[]
[]
[null,null,"Oświadczenie następcy prawnego Beneficjenta "]
[]
[]
[]
[null,null,"Oświadczam, że wstąpiłem w prawa i obowiązki Beneficjenta wynikające z decyzji o przyznaniu pomocy nr: "]
[]
[]
[]
[null,null,"(numer decyzji o przyznaniu pomocy Beneficjentowi)"]
[]
[null,null,"wydanej przez Agencję Restrukturyzacji i Modernizacji Rolnictwa na rzecz:"]
[]
[]
[null,null,"(Imię i Nazwisko beneficjenta, Adres, PESEL, NIP1)"]
[]
[null,null,"w związku z zaistnieniem następstwa prawnego w dniu "]
[null,null,null,null,null,null,null,null,null,null,null,null,null,null,null,null,null,null,null,null,"(data w formacie rok-miesiąc-dzień) "]
[]
[]
[null,null,null,null,null,null,null,null,null,null,null,null,null,null,null,null,null,null,null,null,null,null,"(data i czytelny podpis podmiotu ubiegającego się o przyznanie pomocy - następcy prawnego/osoby reprezentującej podmiot/pełnomocnika podmiotu)"]
[]
[]
[null,"1Obowiązek podawania numeru NIP nie dotyczy osób fizycznych objętych rejestrem PESEL, nieprowadzących działalności gospodarczej lub niebędących zarejestrowanymi podatnikami podatku od towarów i usług."]

{"sheet":"Zał5_Info przetwarz. danych","index":12,"n_rows":15,"n_cols":28,"rows_kept":15,"cut":false,"hidden":false,"merged":[[16,1,16,36],[17,1,17,36],[19,1,19,37],[1,27,1,30],[10,1,10,36],[11,1,11,36],[12,1,12,36],[13,1,13,36],[14,1,14,36],[15,1,15,36],[4,1,4,36],[5,1,5,36],[6,1,6,36],[7,1,7,36],[8,1,8,36],[9,1,9,36]]}
[]
[null,null,null,null,null,null,null,null,null,null,null,null,null,null,null,null,null,null,null,null,null,null,null,null,null,null,null,"W-1.5/6.2"]
[]
[]
[null,"Klauzula informacja w zakresie przetwarzania danych osobowych"]
[null,"W związku z treścią z art. 14 Rozporządzenia Parlamentu Europejskiego i Rady (UE) 2016/679 z dnia 27 kwietnia 2016 r. w sprawie ochrony osób fizycznych w związku z przetwarzaniem danych osobowych i w sprawie swobodnego przepływu takich danych oraz uchylenia dyrektywy 95/46/WE (ogólne rozporządzenie o ochronie danych) (Dz. Urz. UE, L 119 z 04.05.2016 r., s. 1 oraz Dz. Urz. UE L 127 z 23.05.2018 r., s. 2), dalej: \"RODO\" Agencja Restrukturyzacji i Modernizacji Rolnictwa informuje, że:"]
["1.","Administratorem Pani/Pana danych osobowych (dalej: Administrator) pozyskanych w związku z procedowaniem wniosku o przyzanie pomocy  jest Agencja Restrukturyzacji i Modernizacji Rolnictwa z siedzibą w Warszawie, Al. Jana Pawła II, 00-175 Warszawa. Z Administratorem można kontaktować się poprzez e-mail: info@arimr.gov.pl lub pisemnie na adres korespondencyjny Centrali Agencji Restrukturyzacji i Modernizacji Rolnictwa: ul. Poleczki 33, 02-822 Warszawa."]
["2.","Administrator wyznaczył inspektora ochrony danych, z którym można kontaktować się w sprawach dotyczących przetwarzania danych osobowych oraz korzystania z praw związanych z przetwarzaniem danych, poprzez adres e-mail: iod@arimr.gov.pl lub pisemnie na adres korespondencyjny Administratora wskazanych w pkt 1."]
["3.","Dane osobowe pozyskane przez Administratora przetwarzane będą na podstawie art. 6 ust. 1 lit. c RODO w związku z procedowaniem wniosku o przyznanie pomocy."]
["4.","Administrator będzie przetwarzał następujące kategorie Pani/Pana danych: dane identyfikacyjne oraz dane kontaktowe."]
["5.","Odbiorcami Pani/Pana danych osobowych mogą być:\n1) organy kontrolne,\n2) osoby lub podmioty, którym Administrator udzieli informacji publicznej zgodnie z ustawą z dnia 6 września 2001 r. o dostępie do informacji publicznej (Dz. U. z 2018 r. poz. 1330),\n3) podmioty uprawnione do przetwarzania danych osobowych na podstawie przepisów powszechnie obowiązującego prawa.\n4) podmioty przetwarzające w imieniu Administratora na mocy zawartej umowy, m. in. dostawcy IT.\n"]
["6.","Pani/Pana dane osobowe będą przechowywane przez okres realizacji zadań o których mowa w pkt 3. Okres przechowywania danych może zostać każdorazowo przedłużony o okres przedawnienia roszczeń, jeżeli przetwarzanie danych będzie niezbędne do dochodzenia roszczeń lub do obrony przed takimi roszczeniami przez Administratora. Ponadto, okres przechowywania danych może zostać przedłużony na okres 5 lat, na potrzeby archiwizacji."]
["7.","Przysługuje Pani/Panu prawo do dostępu do Pani/Pana danych osobowych, ich sprostowania, prawo żądania ograniczenia przetwarzania Pani/Pana danych osobowych oraz prawo do przenoszenia Pani/Pana danych osobowych."]
["8.","W przypadku uznania, że przetwarzanie danych osobowych narusza przepisy RODO, przysługuje Pani/Panu prawo wniesienia skargi do Prezesa Urzędu Ochrony Danych Osobowych."]
["9.","Pani/Pana dane Administrator uzyskał od Wnioskodawcy."]